{"text_format":"1","workbook":"xlsx","n_sheets":7,"sheets":["Utbildningstillfällen 2022-2023","Riktade MDU total + Utb.omr.","Tillgängliga utb. MDU total","Avancerad nivå","Distans","Deltidsutb.","Kväll, flexibelt"],"not_rendered":{"charts":0,"images":0,"macros":1,"external_links":0,"defined_names":1,"comments":0,"pivot_tables":0},"unopened":[],"bounds":{"document_bytes":16777216,"sheet_cells":100000,"rows_first":2000,"rows_last":500,"rows_between":2000,"halvings":0,"cell_chars":16384,"cell_head_chars":4096},"cells_cut":0,"cells_raw":0,"read":"whole","date_system":"1900"}

{"sheet":"Utbildningstillfällen 2022-2023","index":0,"n_rows":517,"n_cols":27,"rows_kept":517,"cut":false,"hidden":false,"merged":[]}
[null,"Utbildningsnamn","Kurs & Kurspaket","Program","Kurskod","Nivå","Hög-skole-poäng","Studie-takt","Heltid","Deltid \n51-75%","Deltid \n26-50%","Deltid \n10-25%","Plats/Distans","Huvudområde","Utbildningsområde","Kurser/kurspaket/program som är anpassade för (innehåll eller upplägg) eller riktade till yrkesverksamma","Kurser/kurspaket/program på avancerad nivå","Kurser/Kurspaket/program som ges på distans","Kurser/kurspaket/program med lägre studietakt","Kurser/kurspaket/program som ges kvällar, helger eller med flexibla upplägg"]
["IDT","Datorarkitektur",1,null,"CDT204","G1F",7.5,0.5,null,null,1,null,"V","DV","Teknik",1,0,null,{"$f":"SUM(J2:L2)","v":1},null,null,null,null,null,null,null," "]
["IDT","Distribuerad programvaruutveckling",1,null,"CDT402","A1N",7.5,0.25,null,null,null,1,"V","DV","Teknik",1,1,null,{"$f":"SUM(J3:L3)","v":1}]
["IDT","Tillämpad artificiell intelligens",1,null,"CDT406","A1F",15,1,1,null,null,null,"V","DV","Teknik",1,1,null,0]
["IDT","Validering och verifiering av mjukvara",1,null,"CDT414","A1N",7.5,0.5,null,null,1,null,"V","DV","Teknik",1,1,null,1]
["IDT","Programmering",1,null,"DVA117","G1N",7.5,0.5,null,null,1,null,"V","DV","Teknik",1,0,null,1]
["IDT","Datakommunikation i nätverk I, distanskurs",1,null,"DVA120","G1N",7.5,0.25,null,null,null,1,"distans","DV","Teknik",1,0,1,1,1]
["IDT","Programmering för interaktiva gränssnitt",1,null,"DVA130","G1N",7.5,0.5,null,null,1,null,"E","DV","Teknik",1,0,null,1]
["IDT","Introduktion till maskininlärning",1,null,"DVA133","G1N",2,0.1,null,null,null,1,"distans","DV","Teknik",1,0,1,1,1]
["IDT","Nätverksadministration och övervakning",1,null,"DVA203","G2F",7.5,0.5,null,null,1,null,"V","DV","Teknik",1,0,null,1]
["IDT","Datakommunikation",1,null,"DVA218","G1F",7.5,0.5,null,null,1,null,"V","DV","Teknik",1,0,null,1]
["IDT","Objektorienterad programmering",1,null,"DVA222","G1F",7.5,0.5,null,null,1,null,"V","DV","Teknik",1,0,null,1]
["IDT","Datakommunikation i nätverk II, distanskurs",1,null,"DVA224","G1F",7.5,0.25,null,null,null,1,"distans","DV","Teknik",1,0,1,1,1]
["IDT","Funktionell programmering med F#",1,null,"DVA229","G1F",7.5,0.5,null,null,1,null,"V","DV","Teknik",1,0,null,1]
["IDT","Utveckling av webbapplikationer ",1,null,"DVA231","G1F",7.5,0.5,null,null,1,null,"V","DV","Teknik",1,0,null,1]
["IDT","Programmering av mobila applikationer ",1,null,"DVA232","G1F",7.5,0.5,null,null,1,null,"V","DV","Teknik",1,0,null,1]
["IDT","Säkerhet i datornätverk, distanskurs",1,null,"DVA240","G1F",7.5,0.25,null,null,null,1,"distans","DV","Teknik",1,0,1,1,1]
["IDT","Datastrukturer, algoritmer och programkonstruktion med C",1,null,"DVA244","G1F",7.5,0.5,null,null,1,null,"V","DV","Teknik",1,0,null,1]
["IDT","Datastrukturer, algoritmer och programkonstruktion med Python",1,null,"DVA245","G1F",7.5,0.5,null,null,1,null,"E","DV","Teknik",1,0,null,1]
["IDT","Datastrukturer och algoritmer, fortsättningskurs",1,null,"DVA246","G1F",7.5,0.5,null,null,1,null,"V","DV","Teknik",1,0,null,1]
["IDT","Databaser",1,null,"DVA247","G1F",7.5,0.5,null,null,1,null,"V","DV","Teknik",1,0,null,1]
["IDT","Sakernas internet - Datakommunikation och säkerhet",1,null,"DVA257","G1F",7.5,0.5,null,null,1,null,"E","DV","Teknik",1,0,null,1]
["IDT","Datakommunikation för inbyggda system 1",1,null,"DVA258","G1F",7.5,0.5,null,null,1,null,"V","DV","Teknik",1,0,null,1]
["IDT","Smarta digitala plattformar: molntjänster, säkerhet och big data",1,null,"DVA260","G1F",7.5,0.5,null,null,1,null,"E","DV","Teknik",1,0,null,1]
["IDT","Datakommunikation för inbyggda system 2",1,null,"DVA261","G1F",7.5,0.5,null,null,1,null,"V","DV","Teknik",1,0,null,1]
["IDT","Artificiell intelligens 1",1,null,"DVA264","G1F",7.5,0.5,null,null,1,null,"E","DV","Teknik",1,0,null,1]
["IDT","Artificiell intelligens 2",1,null,"DVA265","G1F",7.5,0.5,null,null,1,null,"E","DV","Teknik",1,0,null,1]
["IDT","Information - kunskap - vetenskap - etik",1,null,"DVA305","G2F",7.5,0.5,null,null,1,null,"V","DV","Teknik",1,0,null,1]
["IDT","Djupinlärning och neurala nätverk",1,null,"DVA307","G2F",7.5,0.5,null,null,1,null,"E","DV","Teknik",1,0,null,1]
["IDT","Programvaruteknik 2:  Projekt grupparbete",1,null,"DVA313","G2F",7.5,0.5,null,null,1,null,"V","DV","Teknik",1,0,null,1]
["IDT","Operativsystem",1,null,"DVA315","G2F",7.5,0.5,null,null,1,null,"V","DV","Teknik",1,0,null,1]
["IDT","Programvaruteknik 1: Grundkurs",1,null,"DVA332","G2F",7.5,0.5,null,null,1,null,"V","DV","Teknik",1,0,null,1]
["IDT","Routing och switching i komplexa nät",1,null,"DVA334","G2F",15,0.5,null,null,1,null,"V","DV","Teknik",1,0,null,1]
["IDT","Parallella system",1,null,"DVA336","G2F",7.5,0.5,null,null,1,null,"V","DV","Teknik",1,0,null,1]
["IDT","Formella språk, automater och beräkningsteori ",1,null,"DVA337","G2F",7.5,0.5,null,null,1,null,"V","DV","Teknik",1,0,null,1]
["IDT","Datorgrafikens grunder",1,null,"DVA338","G2F",7.5,0.5,null,null,1,null,"V","DV","Teknik",1,0,null,1]
["IDT","Kompilatorteori",1,null,"DVA339","G2F",7.5,0.5,null,null,1,null,"V","DV","Teknik",1,0,null,1]
["IDT","Artificiell intelligens",1,null,"DVA340","G2F",7.5,0.5,null,null,1,null,"V","DV","Teknik",1,0,null,1]
["IDT","Industrirobotik",1,null,"DVA400","A1F",7.5,0.5,null,null,1,null,"V","DV","Teknik",1,1,null,1]
["IDT","Modellbaserad utveckling",1,null,"DVA436","A1N",7.5,0.5,null,null,1,null,"V","DV","Teknik",1,1,null,1]
["IDT","Säkerhetskritiska system",1,null,"DVA437","A1N",7.5,0.5,null,null,1,null,"V","DV","Teknik",1,1,null,1]
["IDT","Intelligenta system",1,null,"DVA439","A1F",7.5,0.5,null,null,1,null,"V","DV","Teknik",1,1,null,1]
["IDT","Industriella system i datamoln",1,null,"DVA444","A1N",7.5,0.5,null,null,1,null,"V","DV","Teknik",1,1,null,1]
["IDT","Maskininlärning med Big Data",1,null,"DVA453","A1N",7.5,0.25,null,null,null,1,"distans","DV","Teknik",1,1,1,1,1]
["IDT","Inbyggda system I",1,null,"DVA454","A1N",7.5,0.5,null,null,1,null,"V","DV","Teknik",1,1,null,1]
["IDT","Mjukvaruutveckling för realtidssystem",1,null,"DVA455","A1N",7.5,0.5,null,null,1,null,"V","DV","Teknik",1,1,null,1]
["IDT","Forskningsmetodik i datavetenskap",1,null,"DVA463","A1N",7.5,0.5,null,null,1,null,"V","DV","Teknik",1,1,null,1]
["IDT","Programvarutest",1,null,"DVA464","A1N",7.5,0.25,null,null,null,1,"distans","DV","Teknik",1,1,1,1,1]
["IDT","Säkerhetskritisk mjukvara",1,null,"DVA465","A1N",6,0.25,null,null,null,1,"distans","DV","Teknik",1,1,1,1,1]
["IDT","Kvalitetssäkring - certifiering av säkerhetskritiska (programvaru-) system",1,null,"DVA467","A1N",7.5,0.33,null,null,1,null,"distans","DV","Teknik",1,1,1,1,1]
["IDT","Kvalitetssäkring - upptäcka fel genom formell verifiering",1,null,"DVA468","A1N",7.5,0.25,null,null,null,1,"distans","DV","Teknik",1,1,1,1,1]
["IDT","Kvalitetssäkring - modellbaserad testning i praktiken",1,null,"DVA469","A1N",2.5,0.17,null,null,null,1,"distans","DV","Teknik",1,1,1,1,1]
["IDT","Modellbaserad utveckling: teori och praktik",1,null,"DVA471","A1N",7.5,0.25,null,null,null,1,"distans","DV","Teknik",1,1,1,1,1]
["IDT","Deep learning för industriell bildbehandling",1,null,"DVA476","A1N",2.5,0.25,null,null,null,1,"distans","DV","Teknik",1,1,1,1,1]
["IDT","Preditiv dataanalys",1,null,"DVA478","A1N",2.5,0.25,null,null,null,1,"distans","DV","Teknik",1,1,1,1,1]
["IDT","System-av-system",1,null,"DVA479","A1N",2.5,0.25,null,null,null,1,"distans","DV","Teknik",1,1,1,1,1]
["IDT","Introduktion till infrastrukturer för IoT",1,null,"DVA480","A1N",2.5,0.17,null,null,null,1,"distans","DV","Teknik",1,1,1,1,1]
["IDT","Automatisk testgenerering",1,null,"DVA481","A1N",2.5,0.17,null,null,null,1,"distans","DV","Teknik",1,1,1,1,1]
["IDT","Inbyggda system II",1,null,"DVA482","A1F",7.5,0.5,null,null,1,null,"V","DV","Teknik",1,1,null,1]
["IDT","Design av autonoma system",1,null,"DVA485","A1F",7.5,0.5,null,null,1,null,"V","DV","Teknik",1,1,null,1]
["IDT","Grundläggande industriell cybersäkerhet",1,null,"DVA486","A1N",2.5,0.25,null,null,null,1,"Distans","DV","Teknik",1,1,1,1,1]
["IDT","Metoder och verktyg för industriell cybersäkerhet",1,null,"DVA487","A1N",2.5,0.25,null,null,null,1,"Distans","DV","Teknik",1,1,1,1,1]
["IDT","Programvaruarkitektur",1,null,"DVA488","A1N",7.5,0.5,null,null,null,1,"V","DV","Teknik",1,1,null,1]
["IDT","Webbsäkerhet",1,null,"DVA489","A1N",7.5,0.25,null,null,null,1,"distans","DV","Teknik",1,1,1,1,1]
["IDT","Webbsäkerhet",1,null,"DVA489","A1N",7.5,0.25,null,null,null,1,"V","DV","Teknik",1,1,null,1]
["IDT","Cybersäkerhet inom industriell Augmented Reality",1,null,"DVA491","A1N",2.5,0.17,null,null,null,1,"distans","DV","Teknik",1,1,1,1,1]
["IDT","Elektronik grundkurs",1,null,"ELA103","G1N",7.5,0.5,null,null,1,null,"V","EL","Teknik",1,0,null,{"$f":"SUM(J67:L67)","v":1}]
["IDT","Grunder i medicinsk teknik för vårdpersonal",1,null,"ELA104","G1N",2,0.5,null,null,1,null,"distans","EL","Teknik",1,0,1,1,1]
["IDT","Tillämpad medicinsk teknik för vårdpersonal, EKG i praktiken",1,null,"ELA204","G1F",6,0.5,null,null,1,null,"distans","EL","Teknik",1,0,1,1,1]
["IDT","Elektroniksystem ",1,null,"ELA208","G1F",7.5,0.5,null,null,1,null,"V","EL","Teknik",1,0,null,1]
["IDT","Signalbehandling",1,null,"ELA209","G1F",7.5,0.5,null,null,1,null,"V","EL","Teknik",1,0,null,1]
["IDT","Robust elektronik för tillförlitliga system *",1,null,"ELA305","G2F",7.5,0.5,null,null,1,null,"V","EL","Teknik",1,0,null,1]
["IDT","Sensorteknik",1,null,"ELA400","A1N",7.5,0.5,null,null,1,null,"V","EL","Teknik",1,1,null,1]
["IDT","Medicinsk teknik",1,null,"ELA402","A1N",7.5,0.5,null,null,1,null,"V","DV/EL","Teknik",1,1,null,1]
["IDT","Mobila robotar",1,null,"ELA408","A1F",7.5,0.5,null,null,1,null,"V","EL","Teknik",1,1,null,1]
["IDT","Reglerteknik",1,null,"ELA410","A1F",7.5,0.5,null,null,1,null,"V","EL","Teknik",1,1,null,1]
["IDT","Neuroteknik",1,null,"ELA411","A1F",7.5,0.5,null,null,1,null,"V","EL","Teknik",1,1,null,1]
["IDT","Avancerad signalbehandling",1,null,"ELA412","A1F",7.5,0.5,null,null,1,null,"V","EL","Teknik",1,1,null,1]
["IDT","Komplexa elektroniksystem",1,null,"ELA427","A1N",7.5,0.5,null,null,1,null,"V","EL","Teknik",1,1,null,1]
["IDT","Mänskliga faktorerna",1,null,"FLA103","G1N",7.5,0.5,null,null,1,null,"V","FLYG","Teknik",1,0,null,1]
["IDT","Design av feltoleranta system",1,null,"FLA432","A1F",7.5,0.5,null,null,1,null,"V","X","Teknik",1,1,null,1]
["IDT","Trendspaning i teori och praktik",1,null,"INO106","G1N",7.5,0.5,null,null,1,null,"distans","INO","Teknik",1,0,1,1,1]
["IDT","Framtid och scenariodesign",1,null,"INO109","G1N",7.5,0.25,null,null,null,1,"distans","INO","Teknik",1,0,1,1,1]
["IDT","Grundläggande innovationsledning",1,null,"INO111","G1N",4.5,0.17,null,null,null,1,"distans","INO","Teknik",1,0,1,1,1]
["IDT","Innovationsledning i praktiken",1,null,"INO112","G1N",3,0.1,null,null,null,1,"distans","INO","Teknik",1,0,1,1,1]
["IDT","Entreprenörskap I",1,null,"INO113","G1N",7.5,0.5,null,null,1,null,"E","INO/FEK","Teknik",1,0,null,1]
["IDT","Ansvarsfull forskning och innovation (PRI)",1,null,"INO114","G1N",2.5,0.17,null,null,null,1,"E","INO","Teknik",1,0,null,1,1]
["IDT","Omvärldsanalys för innovation",1,null,"INO115","G1N",7.5,0.5,null,null,1,null,"E","INO","Teknik",1,0,null,1]
["IDT","Projektledning för innovationsteknik",1,null,"INO116","G1N",7.5,0.5,null,null,1,null,"E","INO","Teknik",1,0,null,1]
["IDT","Introduktion till innovationsteknik",1,null,"INO117","G1N",7.5,0.5,null,null,1,null,"E","INO","Teknik",1,0,null,1]
["IDT","Innovation- och förändringsledning",1,null,"INO118","G1F",7.5,0.5,null,null,1,null,"E","INO","Teknik",1,0,null,1]
["IDT","Ansvarsfull innovation",1,null,"INO119","G1F",5,0.33,null,null,1,null,"E","INO","Teknik",1,0,null,1,1]
["IDT","Kreativitet i innovationsprocesser",1,null,"INO125","G1N",7.5,0.5,null,null,1,null,"E","INO","Teknik",1,0,null,1]
["IDT","Innovationsteknik i en industriell kontext",1,null,"INO126","G1N",7.5,0.5,null,null,1,null,"E","INO","Teknik",1,0,null,1]
["IDT","Tjänstelogik",1,null,"INO212","G1F",2.5,0.17,null,null,null,1,"E","INO","Teknik",1,0,null,1,1]
["IDT","Tjänsteinnovation",1,null,"INO214","G1F",5,0.33,null,null,1,null,"E","INO","Teknik",1,0,null,1,1]
["IDT","Mätning av innovation",1,null,"INO242","G1F",7.5,0.5,null,null,1,null,"E","INO","Teknik",1,0,null,1]
["IDT","Tillämpad entreprenörskap och projektledning",1,null,"INO337","G2F",15,1,1,null,null,null,"E","INO","Teknik",1,0,null,0]
["IDT","Entreprenörskap för industriell förnyelse",1,null,"INO400","A1N",7.5,0.5,null,null,1,null,"E","INO","Teknik",1,1,null,1]
["IDT","Innovation och kreativitetsledning",1,null,"INO402","A1N",7.5,0.5,null,null,1,null,"E","INO","Teknik",1,1,null,1]
["IDT","Att skriva om design",1,null,"ITE100","G1N",7.5,0.5,null,null,1,null,"E","X","Design",1,0,null,1]
["IDT","Frihandsteckning och modellstudier",1,null,"ITE108","G1N",4,0.25,null,null,null,1,"E","ID","Design",1,0,null,1,1]
["IDT","Grafisk form grundkurs",1,null,"ITE113","G1N",7.5,0.5,null,null,1,null,"E","ID","Design",1,0,null,1]
["IDT","Introduktion till informationsdesign, distans",1,null,"ITE117","G1N",7.5,0.5,null,null,1,null,"distans","ID","Design",1,0,1,1,1]
["IDT","Att informera med text",1,null,"ITE118","G1N",7.5,0.5,null,null,1,null,"distans","ID","Design",1,0,1,1,1]
["IDT","Grunderna för pixel- och objektgrafik",1,null,"ITE122","G1N",4,0.12,null,null,null,1,"E","ID","Teknik",1,0,null,1,1]
["IDT","Tillgänglig kommunikation",1,null,"ITE124","G1N",7.5,0.5,null,null,1,null,"distans","ID","Design",1,0,1,1,1]
["IDT","Digitala system",1,null,"ITE200","G1F",7.5,0.5,null,null,1,null,"E","ID","Teknik",1,0,null,1]
["IDT","Universell design för interaktion",1,null,"ITE208","G1F",7.5,1,1,null,null,null,"E","ID","Design",1,0,null,0]
["IDT","Planerad kommunikation",1,null,"ITE224","G1F",7.5,1,1,null,null,null,"E","ID","Design",1,0,null,0]
["IDT","Stilar och genrer inom informativt skrivande *",1,null,"ITE226","G1F",15,1,1,null,null,null,"E","ID","Design",1,0,null,0]
["IDT","Informationshantering och källkritik *",1,null,"ITE228","G1F",7.5,1,1,null,null,null,"E","ID","Design",1,0,null,0]
["IDT","Teknikillustration",1,null,"ITE241","G1F",15,1,1,null,null,null,"E","ID","Design",1,0,null,0]
["IDT","Multimodal informationsdesign",1,null,"ITE329","G2F",15,1,1,null,null,null,"E","ID","Design",1,0,null,0]
["IDT","Vetenskapsillustration",1,null,"ITE334","G2F",15,1,1,null,null,null,"E","ID","Design",1,0,null,0]
["IDT","Kommunikation i organisationer *",1,null,"ITE345","G2F",7.5,1,1,null,null,null,"E","ID","Design",1,0,null,0]
["IDT","Projektkurs - Design i samproduktion utifrån Human Centered Design",1,null,"ITE400","A1N",7.5,0.5,null,null,1,null,"E","IoD","Design",1,1,null,1]
["IDT","Kommunikation i komplexa organisationer",1,null,"ITE416","A1F",7.5,0.5,null,null,1,null,"E","IoD","Teknik",1,1,null,1]
["IDT","Projektmetodik inom Innovation och Design",1,null,"ITE420","A1N",15,0.5,null,null,1,null,"E","IoD","Teknik",1,1,null,1]
["IDT","Utmaningar inom Innovation och Design",1,null,"ITE423","A1N",15,1,1,null,null,null,"E","IoD","Teknik",1,1,null,0]
["IDT","Projektledning inom Innovation och Design",1,null,"ITE424","A1N",7.5,0.5,null,null,1,null,"E","IoD","Design",1,1,null,1]
["IDT","Tidiga faser inom Innovation och Design",1,null,"ITE425","A1F",7.5,0.5,null,null,1,null,"E","IoD","Design",1,1,null,1]
["IDT","Ritteknik och CAD",1,null,"MTA101","G1N",7.5,0.5,null,null,1,null,"distans","PPU","Teknik",1,0,1,1,1]
["IDT","CAD fördjupning",1,null,"MTA200","G1F",7.5,0.5,null,null,1,null,"E","PPU","Teknik",1,0,null,1]
["IDT","CAD fördjupning, distanskurs",1,null,"MTA201","G1F",7.5,0.5,null,null,1,null,"distans","PPU","Teknik",1,0,1,1,1]
["IDT","Industri 4.0 - Introduktion",1,null,"PPU218","G1F",5,0.33,null,null,1,null,"distans","PPU","Teknik",1,0,1,1,1]
["IDT","Lean produktion",1,null,"PPU219","G1F",5,0.33,null,null,1,null,"Distans","PPU","Teknik",1,0,1,1,1]
["IDT","Kvalitetsutveckling",1,null,"PPU318","G2F",7.5,0.5,null,null,1,null,"E","PPU","Teknik",1,0,null,1]
["IDT","Integrerad produkt- och produktionsutveckling",1,null,"PPU319","G2F",7.5,0.5,null,null,1,null,"E","PPU","Teknik",1,0,null,1]
["IDT","Tillämpad operationsanalys och logistik ",1,null,"PPU407","A1F",7.5,0.5,null,null,1,null,"E","PPU","Teknik",1,1,null,1]
["IDT","Underhåll och tillförlitlighet",1,null,"PPU420","A1F",7.5,0.5,null,null,1,null,"E","PPU","Teknik",1,1,null,{"$f":"SUM(J131:L131)","v":1}]
["IDT","Industriell projektledning",1,null,"PPU437","A1F",5,0.22,null,null,null,1,"distans","PPU","Teknik",1,1,1,1,1]
["IDT","Industriell design excellens",1,null,"PPU438","A1F",7.5,0.5,null,null,1,null,"E","PPU","Teknik",1,1,null,1]
["IDT","Avancerad produktutveckling",1,null,"PPU439","A1F",7.5,0.5,null,null,1,null,"E","PPU","Teknik",1,1,null,1]
["IDT","Industri 4.0 - Realisering ",1,null,"PPU441","A1N",5,0.33,null,null,1,null,"E","PPU","Teknik",1,1,null,1,1]
["IDT","Big data och maskininlärning på molnapplikationer för industriella applikationer",1,null,"PPU442","A1F",7.5,0.5,null,null,1,null,"E","PPU","Teknik",1,1,null,1]
["IDT","Intelligenta fabriker",1,null,"PPU445","A1F",7.5,0.5,null,null,1,null,"E","PPU","Teknik",1,1,null,1]
["IDT","Industriell Internet of Things för tillverkningsindustrin",1,null,"PPU446","A1F",7.5,0.5,null,null,1,null,"E","PPU","Teknik",1,1,null,1]
["IDT","Visualisering i Industri 4.0 ",1,null,"PPU447","A1F",7.5,0.5,null,null,1,null,"E","PPU","Teknik",1,1,null,1]
["IDT","Supply Chain Management",1,null,"PPU448","A1F",7.5,0.5,null,null,1,null,"E","PPU","Teknik",1,1,null,1]
["IDT","Industriell Internet of Things för tillverkningsindustrin",1,null,"PPU450","A1N",5,0.17,null,null,null,1,"Distans","PPU","Teknik",1,1,1,1,1]
["IDT","Utveckling av produkter för cirkulära affärsmodeller",1,null,"PPU456","A1N",7.5,0.5,null,null,1,null,"E","PPU","Teknik",1,1,null,1]
["IDT","Industriell excellens ",1,null,"PPU457","A1F",7.5,0.5,null,null,1,null,"E","PPU","Teknik",1,1,null,1]
["IDT","Simulering av produktionssystem",1,null,"PPU458","A1N",5,0.33,null,null,1,null,"distans","PPU","Teknik",1,1,1,1,1]
["IDT","Digitala tvillingar, XR och AI för Industri 4.0",1,null,"PPU459","A1N",5,0.33,null,null,1,null,"distans","PPU","Teknik",1,1,1,1,1]
["IDT","Industrialisering och upprampning i Industri 4.0",1,null,"PPU461","A1N",5,0.33,null,null,1,null,"distans","PPU","Teknik",1,1,1,1,1]
["IDT","Smart logistik",1,null,"PPU462","A1N",5,0.33,null,null,1,null,"distans","PPU","Teknik",1,1,1,1,1]
["IDT","Kvalitetsledning",1,null,"PPU464","A1F",7.5,0.5,null,null,1,null,"E","PPU","Teknik",1,1,null,1]
["IDT","Masterprogram i Innovation och design",null,1,"AMM06",null,120,1,1,null,null,null,"E","ITE","Design",1,1,null,0]
["IDT","Masterprogram i Intelligenta Inbyggda System",null,1,"GST01",null,"60/120",1,1,null,null,null,"V","DVA","Teknik",1,1,null,0]
["IDT","Masterprogram i produkt- och processutveckling - produktion och logistik",null,1,"ZKS21",null,120,1,1,null,null,null,"E","PPU","Teknik",1,1,null,0]
["IDT","Masterprogram i programvaruteknik",null,1,"ZCS24",null,"60/120",1,1,null,null,null,"V","DVA","Teknik",1,1,null,0]
["EST","Användning och omvandling av biomassa",1,null,"MTK340","AN","7.5",0.5,null,null,1,null,"Distans","Miljöteknik","Teknik",1,1,1,1,1]
["EST","Arbetsrätt",1,null,"HAA107","GN","7.5",0.25,null,null,null,1,"Distans","Handelsrätt","Ekonomi och juridik",1,0,1,1,1]
["EST","Atmosfärisk förorening och luftkvalitet",1,null,"MTK326","AN","7.5",0.5,null,null,1,null,"Distans","Miljöteknik","Teknik",1,1,1,1,1]
["EST","Att utveckla organisationer och ledarskap",1,null,"FOA186","GN","7.5",0.25,null,null,null,1,"Distans","Företagsekonomi","Ekonomi och juridik",1,0,1,1,1]
["EST","Behandling och hantering av avloppsvatten",1,null,"MTK342","AN","7.5",0.5,null,null,null,null,"Distans","Miljöteknik","Teknik",1,1,1,0,1]
["EST","Cirkulär ekonomi i samband med miljöteknik",1,null,"MTK335","AN","2.5",0.5,null,null,1,null,"Distans","Miljöteknik","Teknik",1,1,1,1,1]
["EST","Cross-Cultural Management",1,null,"FOA179","GN","7.5",0.25,null,null,null,1,"Distans","Företagsekonomi","Ekonomi och juridik",1,0,1,1,1]
["EST","Datadriven affärsutveckling",1,null,"FOA235","GN","7.5",0.5,null,null,1,null,"Normal","Företagsekonomi","Ekonomi och juridik",null,0,null,1]
["EST","Den effektiva organisationen",1,null,"EFO235","GN","7.5",0.25,null,null,null,1,"Distans","Företagsekonomi","Ekonomi och juridik",1,0,1,1,1]
["EST","Digital fjärranalys och GIS i miljöteknik",1,null,"MTK336","AN","7.5",0.5,null,null,1,null,"Distans","Miljöteknik","Teknik",1,1,1,1,1]
["EST","Digital tjänsteutveckling",1,null,"FOA234","GN","7.5",0.5,null,null,1,null,"Normal","Företagsekonomi","Ekonomi och juridik",null,0,null,1]
["EST","Digitalisering och marknadsföring",1,null,"FOA142","GN","7.5",0.25,null,null,null,1,"Distans","Företagsekonomi","Ekonomi och juridik",1,0,1,1,1]
["EST","Ekonometri",1,null,"NAA120","GN","7.5",0.5,null,null,1,null,"Normal","Nationalekonomi","Ekonomi och juridik",null,0,null,1]
["EST","Ekonomi inom idrotten",1,null,"FOA193","GN","7.5",0.25,null,null,null,1,"Distans","Företagsekonomi","Ekonomi och juridik",1,0,1,1,1]
["EST","Ekonomi- och Bolagsstyrning för Controllers",1,null,"FOA251","GN","15.0",1,1,null,null,null,"Normal","Företagsekonomi","Ekonomi och juridik",1,0,null,0]
["EST","Ekonomiska kalkyler och intern styrning",1,null,"FOA114","GN","7.5",0.5,null,null,1,null,"Normal","Företagsekonomi","Ekonomi och juridik",1,0,null,1]
["EST","Elektriska maskiner",1,null,"ERA213","GN","7.5",0.5,null,null,1,null,"Normal","Energiteknik","Teknik",null,0,null,1]
["EST","Elkunskap - grundkurs",1,null,"ERA122","GN","7.5",0.5,null,null,1,null,"Normal","Energiteknik","Teknik",null,0,null,1]
["EST","Externredovisning",1,null,"FOA189","GN","7.5",1,1,null,null,null,"Normal","Företagsekonomi","Ekonomi och juridik",1,0,null,0]
["EST","Finansteori",1,null,"NAA115","GN","7.5",0.5,null,null,1,null,"Normal","Nationalekonomi","Ekonomi och juridik",null,0,null,1]
["EST","Företagande i samhället",1,null,"FOA331","AN","7.5",0.5,null,null,1,null,"Normal","Företagsekonomi","Ekonomi och juridik",null,1,null,1]
["EST","Företagsekonomisk forskningsmetod",1,null,"FOA323","AN","15.0",1,1,null,null,null,"Normal","Företagsekonomi","Ekonomi och juridik",null,1,null,0]
["EST","Grundkurs i mikroekonomi",1,null,"NAA134","GN","7.5",0.5,null,null,1,null,"Normal","Nationalekonomi","Ekonomi och juridik",null,0,null,1]
["EST","Grundläggande affärsredovisning - att redovisa är mera än debet och kredit",1,null,"FOA103","GN","7.5",0.25,null,null,null,1,"Distans","Företagsekonomi","Ekonomi och juridik",1,0,1,1,1]
["EST","Humanitär teknik",1,null,"MTK339","AN","7.5",0.5,null,null,1,null,"Distans","Miljöteknik","Teknik",1,1,1,1,1]
["EST","Hållbara energisystem - fördjupningsstudier",1,null,"ERA306","AN","20.0",0.75,null,1,null,null,"Normal","Energiteknik","Teknik",null,1,null,1]
["EST","Hållbara energisystem - projekt",1,null,"ERA305","AN","10.0",0.33,null,null,1,null,"Normal","Energiteknik","Teknik",null,1,null,1]
["EST","Hållbarhetsredovisning",1,null,"FOA195","GN","7.5",0.25,null,null,null,1,"Distans","Företagsekonomi","Ekonomi och juridik",1,0,1,1,1]
["EST","Idrottsjuridik",1,null,"HAA108","GN","7.5",0.25,null,null,null,1,"Distans","Handelsrätt","Ekonomi och juridik",1,0,1,1,1]
["EST","Industriell dynamik",1,null,"MTK334","AN","2.5",0.5,null,null,1,null,"Distans","Miljöteknik","Teknik",1,1,1,1,1]
["EST","Internationell handelsteori",1,null,"NAA136","GN","7.5",0.5,null,null,1,null,"Normal","Nationalekonomi","Ekonomi och juridik",null,0,null,1]
["EST","Internationell marknadsföring",1,null,"FOA241","GN","7.5",0.25,null,null,null,1,"Distans","Företagsekonomi","Ekonomi och juridik",1,0,1,1,1]
["EST","Introduktion till avancerade managementstudier",1,null,"FOA314","AN","7.5",0.5,null,null,1,null,"Normal","Företagsekonomi","Ekonomi och juridik",null,1,null,{"$f":"SUM(J185:L185)","v":1}]
["EST","Introduktion till hållbara energisystem",1,null,"ERA217","GN","7.5",0.5,null,null,1,null,"Normal","Energiteknik","Teknik",null,0,null,1]
["EST","Introduktion till miljöteknik",1,null,"MTK106","GN","7.5",0.5,null,null,1,null,"Distans","Miljöteknik","Teknik",1,0,1,1,1]
["EST","Introduktion till universitetsstudier",1,null,"OAH118","GN","7.5",0.25,null,null,null,1,"Normal","Energiteknik","Teknik",1,0,null,1,1]
["EST","Kinas globala inflytande",1,null,"SKA134","GN","7.5",0.25,null,null,null,1,"Distans","Statsvetenskap","Samhälls- och beteendevetenskap",1,0,1,1,1]
["EST","Klimatförändringar och energi: då, nu och i framtiden",1,null,"MTK347","AN","7.5",0.5,null,null,1,null,"Distans","Miljöteknik","Teknik",1,1,1,1,1]
["EST","Konsumentbeteende",1,null,"FOA178","GN","7.5",0.25,null,null,null,1,"Distans","Företagsekonomi","Ekonomi och juridik",1,0,1,1,1]
["EST","Labour Economics",1,null,"NAA203","GN","7.5",0.5,null,null,1,null,"Normal","Nationalekonomi","Ekonomi och juridik",null,0,null,1]
["EST","Ledarskap och team",1,null,"FOA138","GN","7.5",0.25,null,null,null,1,"Distans","Företagsekonomi","Ekonomi och juridik",1,0,1,1,1]
["EST","Makroekonomins grunder",1,null,"NAA135","GN","7.5",0.5,null,null,1,null,"Normal","Nationalekonomi","Ekonomi och juridik",null,0,null,1]
["EST","Marknadsföring - en introduktion",1,null,"FOA196","GN","7.5",0.25,null,null,null,1,"Distans","Företagsekonomi","Ekonomi och juridik",1,0,1,1,1]
["EST","Marknadskommunikation",1,null,"FOA143","GN","7.5",0.25,null,null,null,1,"Distans","Företagsekonomi","Ekonomi och juridik",1,0,1,1,1]
["EST","Mikroekonomi fortsättningskurs",1,null,"NAA122","GN","7.5",0.5,null,null,1,null,"Normal","Nationalekonomi","Ekonomi och juridik",null,0,null,1]
["EST","Miljöekonomi",1,null,"MTK333","AN","2.5",0.5,null,null,1,null,"Distans","Miljöteknik","Teknik",1,1,1,1,1]
["EST","Modern redovisning och revision",1,null,"FOA332","AN","7.5",0.5,null,null,1,null,"Normal","Företagsekonomi","Ekonomi och juridik",1,1,null,1]
["EST","Multivariat dataanalys i teknik",1,null,"MTK337","AN","7.5",0.5,null,null,1,null,"Distans","Miljöteknik","Teknik",1,1,1,1,1]
["EST","Nutida perspektiv på managementstudier",1,null,"FOA315","AN","7.5",0.5,null,null,1,null,"Normal","Företagsekonomi","Ekonomi och juridik",null,1,null,1]
["EST","Offentlig politik och förvaltning",1,null,"SKA129","GN","7.5",1,1,null,null,null,"Normal","Statsvetenskap","Samhälls- och beteendevetenskap",1,0,null,0]
["EST","Operativ ekonomistyrning utifrån ett digitalt perspektiv",1,null,"FOA327","AN","7.5",0.5,null,null,1,null,"Normal","Företagsekonomi","Ekonomi och juridik",1,1,null,1]
["EST","Projekt, ledning och verksamhetsutveckling",1,null,"FOA334","AN","7.5",0.5,null,null,1,null,"Normal","Företagsekonomi","Ekonomi och juridik",1,1,null,1]
["EST","Projektledning och förändringsledning i en digital värld",1,null,"FOA257","GN","7.5",0.5,null,null,1,null,"Normal","Företagsekonomi","Ekonomi och juridik",1,0,null,1]
["EST","Realtidsanalys i miljöteknik",1,null,"MTK341","AN","7.5",0.5,null,null,1,null,"Distans","Miljöteknik","Teknik",1,1,1,1,1]
["EST","Ritningslära",1,null,"BTA124","GN","2.5",0.12,null,null,null,1,"Normal","Byggnadsteknik","Teknik",1,0,null,1]
["EST","Räkna med lönsamhet",1,null,"FOA173","GN","7.5",0.25,null,null,null,1,"Distans","Företagsekonomi","Ekonomi och juridik",1,0,1,1,1]
["EST","Sports management",1,null,"FOA115","GN","7.5",0.25,null,null,null,1,"Distans","Företagsekonomi","Ekonomi och juridik",1,0,1,1,1]
["EST","Sports marketing",1,null,"FOA175","GN","7.5",0.25,null,null,null,1,"Distans","Företagsekonomi","Ekonomi och juridik",1,0,1,1,1]
["EST","Statsvetenskap och arbetsmarknad",1,null,"SKA208","GN","15.0",0.5,null,null,1,null,"Normal","Statsvetenskap","Samhälls- och beteendevetenskap",null,0,null,1]
["EST","Strategi och internationell marknadsföring",1,null,"FOA324","AN","15.0",1,1,null,null,null,"Normal","Företagsekonomi","Ekonomi och juridik",1,1,null,0]
["EST","Strategi och management",1,null,"FOA238","GN","15.0",1,1,null,null,null,"Normal","Företagsekonomi","Ekonomi och juridik",1,0,null,0]
["EST","Strategi och styrning av digital verksamhet",1,null,"FOA236","GN","7.5",0.5,null,null,1,null,"Normal","Företagsekonomi","Ekonomi och juridik",1,0,null,1]
["EST","Strategisk ekonomistyrning utifrån ledningsperspektiv",1,null,"FOA333","AN","7.5",0.5,null,null,1,null,"Normal","Företagsekonomi","Ekonomi och juridik",1,1,null,1]
["EST","Strömningsteknik",1,null,"ERA101","GN","7.5",0.5,null,null,1,null,"Normal","Energiteknik","Teknik",null,0,null,1]
["EST","Styrning av energisystem",1,null,"ERA113","GN","7.5",0.5,null,null,1,null,"Normal","Energiteknik","Teknik",1,0,null,1]
["EST","Systemmodellering i miljöteknik",1,null,"MTK338","AN","7.5",0.5,null,null,1,null,"Distans","Miljöteknik","Teknik",1,1,1,1,1]
["EST","Tillämpad mikroekonomi",1,null,"NAA129","GN","7.5",0.5,null,null,1,null,"Distans","Nationalekonomi","Ekonomi och juridik",null,0,1,1]
["EST","Tillämpad statistik för ingenjörer",1,null,"MTK327","AN","2.5",0.5,null,null,1,null,"Distans","Miljöteknik","Teknik",1,1,1,1,1]
["EST","Tjänstemarknadsföring",1,null,"FOA192","GN","7.5",0.25,null,null,null,1,"Normal","Företagsekonomi","Ekonomi och juridik",1,0,null,1,1]
["EST","Utvärdering",1,null,"OAH111","GN","7.5",0.25,null,null,null,1,"Distans","Statsvetenskap","Samhälls- och beteendevetenskap",1,0,1,1,1]
["EST","Vetenskapliga metoder i miljöteknik",1,null,"MTK328","AN","5.0",0.5,null,null,1,null,"Distans","Miljöteknik","Teknik",1,1,1,1,1]
["EST","Vind- och vattenkraft",1,null,"ERA114","GN","7.5",0.5,null,null,1,null,"Normal","Energiteknik","Teknik",1,0,null,1]
["EST","Värmeöverföring",1,null,"ERA106","GN","7.5",0.5,null,null,1,null,"Normal","Energiteknik","Teknik",null,0,null,1]
["EST","Värmeöverföring",1,null,"ERA106","GN","7.5",0.5,null,null,1,null,"Normal","Energiteknik","Teknik",null,0,null,1]
["EST","Cross-Cultural Management",1,null,"FOA179","GN","7.5",0.5,null,null,1,null,"Distans","Företagsekonomi","Ekonomi och juridik",1,0,1,1,1]
["EST","Politiska maskuliniteter",1,null,"SKA121","GN","7.5",0.5,null,null,1,null,"Distans","Statsvetenskap","Samhälls- och beteendevetenskap",1,0,1,1,1]
["EST","Aktuella frågor inom konsumentmarknadsföring",1,null,"FOA325","AN","15.0",1,1,null,null,null,"Normal","Företagsekonomi","Ekonomi och juridik",1,1,null,0]
["EST","Att utveckla organisationer och ledarskap",1,null,"FOA186","GN","7.5",0.25,null,null,null,1,"Distans","Företagsekonomi","Ekonomi och juridik",1,0,1,1,1]
["EST","Behandling och hantering av dricksvatten",1,null,"MTK329","AN","7.5",0.5,null,null,1,null,"Distans","Miljöteknik","Teknik",1,1,1,1,1]
["EST","Byggnaders energisystem",1,null,"ERA209","GN","15.0",1,1,null,null,null,"Normal","Energiteknik","Teknik",1,0,null,0]
["EST","Byggnadsfysik",1,null,"BTA139","GN","7.5",0.5,null,null,1,null,"Normal","Byggnadsteknik","Teknik",null,0,null,1]
["EST","Den effektiva organisationen",1,null,"EFO235","GN","7.5",0.25,null,null,null,1,"Distans","Företagsekonomi","Ekonomi och juridik",1,0,1,{"$f":"SUM(J234:L234)","v":1},1]
["EST","Digitalisering av verksamheter",1,null,"FOA237","GN","15.0",1,1,null,null,null,"Normal","Företagsekonomi","Ekonomi och juridik",1,0,null,{"$f":"SUM(J235:L235)","v":0}]
["EST","E-handel och digitalisering",1,null,"FOA182","GN","7.5",1,1,null,null,null,"Normal","Företagsekonomi","Ekonomi och juridik",1,0,null,0]
["EST","Ekonomistyrning",1,null,"FOA171","GN","7.5",0.5,null,null,1,null,"Normal","Företagsekonomi","Ekonomi och juridik",1,0,null,1]
["EST","Elektriska transmissionssystem",1,null,"ERA219","GN","7.5",0.5,null,null,1,null,"Normal","Energiteknik","Teknik",1,0,null,1]
["EST","Elkraftteknik",1,null,"ERA123","GN","7.5",0.5,null,null,1,null,"Normal","Energiteknik","Teknik",1,0,null,1]
["EST","Energi och klimat",1,null,"MTK204","GN","7.5",0.5,null,null,1,null,"Distans","Miljöteknik","Teknik",1,0,1,1,1]
["EST","Energi och naturresurser",1,null,"MTK107","GN","7.5",0.5,null,null,1,null,"Distans","Miljöteknik","Teknik",1,0,1,1,1]
["EST","Eventmarknadsföring",1,null,"FOA218","GN","7.5",0.25,null,null,null,1,"Distans","Företagsekonomi","Ekonomi och juridik",1,0,1,1,1]
["EST","Externredovisning",1,null,"FOA189","GN","7.5",0.5,null,null,1,null,"Normal","Företagsekonomi","Ekonomi och juridik",1,0,null,1]
["EST","Fjärrvärmeteknik",1,null,"ERA116","GN","7.5",0.5,null,null,1,null,"Normal","Energiteknik","Teknik",1,0,null,1]
["EST","Företagets internationaliseringsprocess",1,null,"FOA187","GN","7.5",1,1,null,null,null,"Normal","Företagsekonomi","Ekonomi och juridik",1,0,null,0]
["EST","Företagsekonomisk forskning i praktiken",1,null,"FOA330","AN","15.0",0.5,null,null,1,null,"Normal","Företagsekonomi","Ekonomi och juridik",null,1,null,1]
["EST","Företagsekonomisk forskningsmetod och akademiskt skrivande",1,null,"FOA198","GN","7.5",0.25,null,null,null,1,"Distans","Företagsekonomi","Ekonomi och juridik",1,0,1,1,1]
["EST","Geoteknik och geologi",1,null,"BTA130","GN","7.5",0.5,null,null,1,null,"Normal","Byggnadsteknik","Teknik",null,0,null,1]
["EST","Globalisering och internationell handel",1,null,"NAA306","AN","7.5",0.5,null,null,1,null,"Normal","Nationalekonomi","Ekonomi och juridik",1,1,null,1]
["EST","Grundläggande affärsredovisning - att redovisa är mera än debet och kredit",1,null,"FOA103","GN","7.5",0.25,null,null,null,1,"Distans","Företagsekonomi","Ekonomi och juridik",1,0,1,1,1]
["EST","Hållbar produktion och konsumtion",1,null,"MTK331","GN","7.5",0.5,null,null,1,null,"Distans","Miljöteknik","Teknik",1,0,1,1,1]
["EST","Hållbara städer och infrastruktur",1,null,"MTK330","GN","7.5",0.5,null,null,1,null,"Distans","Miljöteknik","Teknik",1,0,1,1,1]
["EST","Hållbarhetsredovisning",1,null,"FOA195","GN","7.5",0.25,null,null,null,1,"Distans","Företagsekonomi","Ekonomi och juridik",1,0,1,1,1]
["EST","Industriell förbränning och bränslen",1,null,"ERA121","GN","7.5",0.5,null,null,1,null,"Normal","Energiteknik","Teknik",null,0,null,1]
["EST","Internationell projektledning",1,null,"FOA183","GN","7.5",1,1,null,null,null,"Normal","Företagsekonomi","Ekonomi och juridik",1,0,null,0]
["EST","Internationella energisystem",1,null,"ERA301","AN","7.5",0.5,null,null,1,null,"Normal","Energiteknik","Teknik",null,1,null,1]
["EST","Koncernredovisning i teori och praktik",1,null,"FOA255","GN","7.5",1,1,null,null,null,"Distans","Företagsekonomi","Ekonomi och juridik",1,0,1,0,1]
["EST","Konsumentbeteende",1,null,"FOA178","GN","7.5",0.25,null,null,null,1,"Distans","Företagsekonomi","Ekonomi och juridik",1,0,1,1,1]
["EST","Kyl- och värmepumpteknik",1,null,"ERA111","GN","7.5",0.5,null,null,1,null,"Normal","Energiteknik","Teknik",null,0,null,1]
["EST","Luftkvalitetshantering",1,null,"MTK348","AN","2.5",0.5,null,null,1,null,"Distans","Miljöteknik","Teknik",1,1,1,1,1]
["EST","Makroekonomi ",1,null,"NAA139","GN","7.5",1,1,null,null,null,"Normal","Nationalekonomi","Ekonomi och juridik",1,0,null,0]
["EST","Makroekonomi ",1,null,"NAA140","GN","7.5",1,1,null,null,null,"Normal","Nationalekonomi","Ekonomi och juridik",1,0,null,0]
["EST","Makroekonomisk teori",1,null,"NAA207","GN","7.5",0.5,null,null,1,null,"Normal","Nationalekonomi","Ekonomi och juridik",null,0,null,1]
["EST","Management i multinationella företag",1,null,"FOA231","GN","15.0",1,1,null,null,null,"Normal","Företagsekonomi","Ekonomi och juridik",1,0,null,0]
["EST","Management och arbetsliv",1,null,"FOA246","GN","15.0",1,1,null,null,null,"Normal","Företagsekonomi","Ekonomi och juridik",1,0,null,0]
["EST","Marknader och affärsrelationer",1,null,"FOA247","GN","15.0",1,1,null,null,null,"Normal","Företagsekonomi","Ekonomi och juridik",1,0,null,0]
["EST","Marknadsstrategi i praktiken",1,null,"FOA245","GN","15.0",1,1,null,null,null,"Normal","Företagsekonomi","Ekonomi och juridik",1,0,null,0]
["EST","Mikroekonomi ",1,null,"NAA137","GN","7.5",1,1,null,null,null,"Normal","Nationalekonomi","Ekonomi och juridik",1,0,null,0]
["EST","Mikroekonomi",1,null,"NAA138","GN","7.5",1,1,null,null,null,"Normal","Nationalekonomi","Ekonomi och juridik",1,0,null,0]
["EST","Miljöteknik för ingenjörer",1,null,"MTK203","GN","7.5",0.5,null,null,1,null,"Normal","Miljöteknik","Teknik",1,0,null,1]
["EST","Nordiska perspektiv på marknadsföring och management",1,null,"FOA252","GN","15.0",1,1,null,null,null,"Normal","Företagsekonomi","Ekonomi och juridik",1,0,null,0]
["EST","Politik som rationellt handlande",1,null,"SKA125","GN","7.5",0.25,null,null,null,1,"Distans","Statsvetenskap","Samhälls- och beteendevetenskap",1,0,1,1,1]
["EST","Processimulering",1,null,"ERA312","AN","7.5",0.5,null,null,1,null,"Normal","Energiteknik","Teknik",null,1,null,1]
["EST","Processmodellering",1,null,"ERA311","AN","7.5",0.5,null,null,1,null,"Normal","Energiteknik","Teknik",null,1,null,1]
["EST","Processoptimering",1,null,"ERA320","AN","7.5",0.5,null,null,1,null,"Normal","Energiteknik","Teknik",null,1,null,1]
["EST","Projektledning",1,null,"OAH113","GN","7.5",0.25,null,null,null,1,"Distans","Företagsekonomi","Ekonomi och juridik",1,0,1,1,1]
["EST","Resursåtervinning och avfallshantering",1,null,"MTK332","AN","7.5",0.5,null,null,1,null,"Distans","Miljöteknik","Teknik",1,1,1,1,1]
["EST","Räkna med lönsamhet",1,null,"FOA173","GN","7.5",0.25,null,null,null,1,"Distans","Företagsekonomi","Ekonomi och juridik",1,0,1,1,1]
["EST","Service Management",1,null,"FOA177","GN","7.5",1,1,null,null,null,"Normal","Företagsekonomi","Ekonomi och juridik",null,0,null,0]
["EST","Självständigt arbete i energiteknik inom industriell ekonomi",1,null,"ERA215","GN","15.0",0.5,null,null,1,null,"Normal","Energiteknik","Teknik",null,0,null,1]
["EST","Solceller och solfångare",1,null,"ERA115","GN","7.5",0.5,null,null,1,null,"Normal","Energiteknik","Teknik",1,0,null,1]
["EST","Solenergi",1,null,"ERA125","GN","7.5",0.5,null,null,1,null,"Normal","Energiteknik","Teknik",1,0,null,1]
["EST","Sports management",1,null,"FOA115","GN","7.5",0.25,null,null,null,1,"Distans","Företagsekonomi","Ekonomi och juridik",1,0,1,1,1]
["EST","Sports marketing",1,null,"FOA175","GN","7.5",0.25,null,null,null,1,"Distans","Företagsekonomi","Ekonomi och juridik",1,0,1,1,1]
["EST","Teknik i organisationer och samhälle",1,null,"IEO107","GN","7.5",0.25,null,null,null,1,"Distans","Industriell ekonomi","Ekonomi och juridik",1,0,1,1,1]
["EST","Tillämpad spektral avbildning i miljöteknik",1,null,"MTK344","AN","2.5",0.5,null,null,1,null,"Distans","Miljöteknik","Teknik",1,1,1,1,1]
["EST","Tillämpad termodynamik",1,null,"ERA102","GN","7.5",0.5,null,null,1,null,"Normal","Energiteknik","Teknik",null,0,null,1]
["EST","Tjänstemarknadsföring",1,null,"FOA192","GN","7.5",0.25,null,null,null,1,"Distans","Företagsekonomi","Ekonomi och juridik",1,0,1,1,1]
["EST","Uppvärmningsteknik",1,null,"ERA110","GN","7.5",0.5,null,null,1,null,"Normal","Energiteknik","Teknik",1,0,null,1]
["EST","Utvärdering",1,null,"OAH111","GN","7.5",0.25,null,null,null,1,"Distans","Statsvetenskap","Samhälls- och beteendevetenskap",1,0,1,1,1]
["EST","Värme- och kraftteknik",1,null,"ERA221","GN","7.5",1,1,null,null,null,"Distans","Energiteknik","Teknik",1,0,1,{"$f":"SUM(J291:L291)","v":0},1]
["EST","Civilingenjörsprogrammet i energisystem",null,1,"YCT01","AN",300,1,1,null,null,null,"Normal","Energiteknik","Teknik",null,1,null,0]
["EST","Civilingenjörsprogrammet i industriell ekonomi",null,1,"GCV03","AN",300,1,1,null,null,null,"Normal","Industriell ekonomi","Ekonomi och juridik",null,1,null,0]
["EST","Magisterprogram i företagsekonomi, inriktning organisation/management",null,1,"AGM06","AN",60,1,1,null,null,null,"Normal","Företagsekonomi","Ekonomi och juridik",1,1,null,0]
["EST","Magisterprogram i företagsekonomi, inriktning redovisning",null,1,"AGM06","AN",60,1,1,null,null,null,"Normal","Företagsekonomi","Ekonomi och juridik",1,1,null,0]
["EST","Magisterprogram i internationell marknadsföring",null,1,"ZEG23 ","AN",60,1,1,null,null,null,"Normal","Företagsekonomi","Ekonomi och juridik",1,1,null,0]
["EST","Masterprogram i hållbara energisystem",null,1,"AMM02","AN",120,1,1,null,null,null,"Normal","Energiteknik","Teknik",1,1,null,0]
["EST","Masterprogram i miljöteknik för hållbar utveckling",null,1,"AMM13","AN",120,1,1,null,null,null,"Normal","Miljöteknik","Teknik",1,1,null,0]
["HVV","Smärta och smärtbehandling",1,null,"BMA053","A1N",7.5,"Halvfart",null,null,1,null,"Distans","Medicin AN","Hälsa och vård",1,1,1,1]
["HVV","Trycksår - prevention och behandling",1,null,"BMA075","A1N",4.5,"Halvfart",null,null,1,null,"Distans","Medicin AN","Hälsa och vård",1,1,1,1]
["HVV","Vård och behandling vid akutmedicinska sjukdomar och tillstånd",1,null,"BMA089","A1N",7.5,"Halvfart",null,null,1,null,"Distans","Medicin AN","Hälsa och vård",1,1,1,1]
["HVV","Vård och behandling vid akut kirurgisk sjukdom",1,null,"BMA090","A1N",7.5,"Halvfart",null,null,1,null,"Distans","Medicin AN","Hälsa och vård",1,1,1,1]
["HVV","Antibiotikaresistens - prevention och strategier",1,null,"BMA092","A1N",4.5,"Halvfart",null,null,1,null,"Distans","Medicin AN","Hälsa och vård",1,1,1,1]
["HVV","Kardiologi: Arytmier",1,null,"BMA096","A1N",7.5,"Kvartsfart",null,null,null,1,"Distans","Medicin AN","Hälsa och vård",1,1,1,1]
["HVV","Vård och behandling vid infektionssjukdomar",1,null,"BMA098","A1N",7.5,"Halvfart",null,null,1,null,"Distans","Medicin AN","Hälsa och vård",1,1,1,1]
["HVV","Astma, allergi och kroniskt obstruktiv lungsjukdom (KOL)",1,null,"BMA099","A1N",7.5,"Kvartsfart",null,null,null,1,"Distans","Medicin AN","Hälsa och vård",1,1,1,1]
["HVV","Psykopatologi",1,null,"BMA102","A1N",12,"Helfart",1,null,null,null,"Normal","Medicin AN","Hälsa och vård",1,1,null,0]
["HVV","Medicinsk behandling av diabetes ",1,null,"BMA105","A1N",7.5,"Kvartsfart",null,null,null,1,"Distans","Medicin AN","Hälsa och vård",1,1,1,1]
["HVV","Grundläggande sår och sårbehandling ",1,null,"BMA110","G1N",3,"Halvfart",null,null,1,null,"Distans","Medicin GN","Hälsa och vård",1,0,1,1]
["HVV"," Avancerad sår och sårbehandling",1,null,"BMA111","A1N",7.5,"Halvfart",null,null,1,null,"Normal och distans","Medicin AN","Hälsa och vård",1,1,1,1]
["HVV","Vård och behandling vid njurmedicinska sjukdomar",1,null,"BMA209","A1N",7.5,"Kvartsfart",null,null,null,1,"Distans","Medicin AN","Hälsa och vård",1,1,1,1]
["HVV","Kardiologi - Kranskärlssjukdom",1,null,"BMA210","A1N",7.5,"Kvartsfart",null,null,null,1,"Distans","Medicin AN","Hälsa och vård",1,1,1,1]
["HVV","Hälsofrämjande arbete - implementering",1,null,"FHA042","A1N",7.5,"Helfart",1,null,null,null,"Normal","Vård AN","Hälsa och vård",1,1,null,0]
["HVV","Hälsofrämjande arbete - implementering",1,null,"FHA042","A1N",7.5,"Halvfart",null,null,1,null,"Normal","Vård AN","Hälsa och vård",1,1,null,1]
["HVV","Fysisk aktivitet och hälsa",1,null,"FHA060","G1N",7.5,"Halvfart",null,null,1,null,"Distans","Vård GN","Hälsa och vård",1,0,1,1]
["HVV","Att främja barns och ungas psykiska hälsa",1,null,"FHA061","A1N",7.5,"Helfart",1,null,null,null,"Normal","Vård AN","Hälsa och vård",1,1,null,0]
["HVV","Metoder för att studera hälsa",1,null,"FHA071","A1N",7.5,"Helfart",1,null,null,null,"Normal","Vård AN","Hälsa och vård",1,1,null,0]
["HVV","Att utveckla interventioner för att främja hälsa och förebygga ohälsa",1,null,"FHA078","A1N",7.5,"Halvfart",null,null,1,null,"Normal","Vård AN","Hälsa och vård",1,1,null,1]
["HVV","Hållbart arbetsliv, ledarskap och hälsa  ",1,null,"FHA083","G1F",15,"Helfart",1,null,null,null,"Normal","Vård GN","Hälsa och vård",1,0,null,0]
["HVV","Global hälsa och hållbar utveckling",1,null,"FHA084","G1F",7.5,"Helfart",1,null,null,null,"Normal","Vård GN","Hälsa och vård",1,0,null,0]
["HVV","Projektledning",1,null,"FHA085","G1F",7.5,"Helfart",1,null,null,null,"Normal","Vård GN","Hälsa och vård",1,0,null,0]
["HVV","Kost och fysisk aktivitet - ur ett folkhälsoperspektiv",1,null,"FHA087","G1N",7.5,"Helfart",1,null,null,null,"Normal","Vård","Hälsa och vård",1,0,null,0]
["HVV","Alkohol, tobak, narkotika, doping och spel ur ett folkhälsoperspektiv",1,null,"FHA088","G1N",7.5,"Helfart",1,null,null,null,"Normal","Vård","Hälsa och vård",1,0,null,0]
["HVV","Psykisk ohälsa – en utmaning för folkhälsan ",1,null,"FHA089","G2F",7.5,"Helfart",1,null,null,null,"Normal","Vård","Hälsa och vård",1,0,null,0]
["HVV","Anpassa och ordinera fysisk aktivitet",1,null,"FYS046","A1N",7.5,"Kvartsfart",null,null,null,1,"Distans","Vård AN","Hälsa och vård",1,1,1,1]
["HVV","Tillämpningar av beteendemedicin i fysioterapi",1,null,"FYS048","A1F",7.5,"Halvfart",null,null,1,null,"Distans","Vård AN","Hälsa och vård",1,1,1,1]
["HVV","Respirationssystemets anatomi, fysiologi och sjukdomar relevanta inom fysioterapi",1,null,"FYS055","A1N",2,"Tiondelsfart",null,null,null,1,"Distans","Medicin AN","Hälsa och vård",1,1,1,1]
["HVV","Avancerade undersökningar vid nedsatt andningsfunktion inom fysioterapi",1,null,"FYS056","A1F",2.5,"Tiondelsfart",null,null,null,1,"Distans","Medicin AN","Hälsa och vård",1,1,1,1]
["HVV","Fördjupade åtgärder vid nedsatt andningsfunktion inom fysioterapi",1,null,"FYS057","A1F",3,"Tiondelsfart",null,null,null,1,"Distans","Medicin AN","Hälsa och vård",1,1,1,1]
["HVV","Utveckling av fysioterapi med inriktning beteendemedicin",1,null,"FYS068","A1F",7.5,"Halvfart",null,null,1,null,"Normal",null,"Hälsa och vård",1,1,null,1]
["HVV","Existentiell vägledning",1,null,"OAV001","A1N",30,"Halvfart",null,null,1,null,"Normal","Vård AN","Hälsa och vård",1,1,null,1]
["HVV","Humanistisk och existentiell psykologi",1,null,"OAV002","A1N",7.5,"Halvfart",null,null,1,null,"Normal","Samhällsv AN","Hälsa och vård",1,1,null,1]
["HVV","Människan i världen",1,null,"OAV003","A1N",7.5,"Halvfart",null,null,1,null,"Normal","Samhällsv AN","Hälsa och vård",1,1,null,1]
["HVV","Etik vid införande av hälso- och välfärdsteknik",1,null,"OAV007","A1N",7.5,"Halvfart",null,null,1,null,"Distans",null,"Hälsa och vård",1,1,1,1]
["HVV","Hälso- och välfärdsteknik för livskvalitet, trygghet, aktivitet, delaktighet och självständighet ",1,null,"OAV011","A1N",7.5,"Halvfart",null,null,1,null,"Distans",null,"Hälsa och vård",1,1,1,1]
["HVV","Hälso- och välfärdsteknik i vård och omsorg ur ett användarperspektiv ",1,null,"OAV012","G1N",4.5,"Kvartsfart",null,null,null,1,"Distans",null,"Hälsa och vård",1,0,1,1]
["HVV","Hälsa och välfärd - Samproduktion och implementering",1,null,"OAV014","A1N",7.5,"Halvfart",null,null,1,null,"Distans",null,"Hälsa och vård",1,1,1,1]
["HVV","Hälsoekonomiska analyser vid implementering av hälso- och välfärdsteknik",1,null,"OAV016","A1F",7.5,"Halvfart",null,null,1,null,"Normal+Distans",null,"Hälsa och vård",1,1,1,1]
["HVV","Introduktion till arbetslivspsykologi",1,null,"PSA101","G1N",7.5,"Kvartsfart",null,null,null,1,"Distans","Samhällsv GN","Samhälls- och beteendevetenskap",1,0,1,1]
["HVV","Stress- och konflikthantering",1,null,"PSA110","G1N",7.5,"Helfart",1,null,null,null,"Normal","Samhällsv GN","Samhälls- och beteendevetenskap",1,0,null,0]
["HVV","Utvecklingspsykologi",1,null,"PSA116","G1N",7.5,"Kvartsfart",null,null,null,1,"Distans","Samhällsv GN","Samhälls- och beteendevetenskap",1,0,1,1]
["HVV","Socialpsykologi",1,null,"PSA125","G1N",7.5,"Halvfart",null,null,1,null,"Distans","Samhällsvetenskap","Samhälls- och beteendevetenskap",1,0,1,1]
["HVV","Kvantitativa forskningsmetoder I",1,null,"PSA312","A1N",7.5,"Halvfart",null,null,1,null,"Distans",null,"Samhälls- och beteendevetenskap",1,1,1,1]
["HVV","Arbetslivet som vetenskapligt fält I",1,null,"PSA318","A1N",7.5,"Halvfart",null,null,1,null,"Normal",null,"Samhälls- och beteendevetenskap",1,1,null,1]
["HVV","Familjekonflikter, kvinnomisshandel och hedersrelaterat våld",1,null,"SAA041","G2F",7.5,"Kvartsfart",null,null,null,1,"Normal+distans","Samhällsv GN","Samhälls- och beteendevetenskap",1,0,1,{"$f":"SUM(J345:L345)","v":1}]
["HVV","Socialt arbete - Social omsorg i socialt arbete",1,null,"SAA078","G2F",7.5,"Helfart",1,null,null,null,"Normal","Samhällsv GN","Samhälls- och beteendevetenskap",1,0,null,0]
["HVV","Socialt arbete - Internationellt och transnationellt socialt arbete",1,null,"SAA082","G2F",7.5,"Helfart",1,null,null,null,"Normal","Samhällsv GN","Samhälls- och beteendevetenskap",1,0,null,0]
["HVV","Den diagnostiserade människan - diagnostisk kultur, makt och identitet",1,null,"SOA142","G1N",7.5,"Halvfart",null,null,1,null,"Normal, veckoslut","Samhällsv GN","Samhälls- och beteendevetenskap",1,0,null,1,1]
["HVV","Djur i samhället",1,null,"SOA143","A1N",7.5,"Kvartsfart",null,null,null,1,"Distans","Samhällsv GN","Samhälls- och beteendevetenskap",1,1,1,1]
["HVV","Kvalitativa forskningsmetoder II ",1,null,"SOA410","A1N",7.5,"Halvfart",null,null,1,null,"Distans",null,"Samhälls- och beteendevetenskap",1,1,1,1]
["HVV","Arbetslivet som vetenskapligt fält II",1,null,"SOA411","A1N",7.5,"Halvfart",null,null,1,null,"Normal",null,"Samhälls- och beteendevetenskap",1,1,null,1]
["HVV","Hälsofrämjande ledarskap",1,null,"SPS102","G1N",7.5,"Halvfart",null,null,1,null,"Normal","Samhällsv GN","Samhälls- och beteendevetenskap",1,0,null,1]
["HVV","Konsumentpsykologi",1,null,"SPS114","G1N",7.5,"Halvfart",null,null,1,null,"Flexibel","Samhällsv GN","Samhälls- och beteendevetenskap",1,0,1,1]
["HVV","Handledning för yrkesverksamma inom hälso-, vård- och välfärdsområdet",1,null,"VAA006","G1N",7.5,"Kvartsfart",null,null,null,1,"Normal","Vård GN","Hälsa och vård",1,0,null,1]
["HVV","Vård och omsorg om äldre personer med demens och psykisk ohälsa",1,null,"VAE014","A1N",7.5,"Kvartsfart",null,null,null,1,"Distans","Vård AN","Hälsa och vård",1,1,1,1]
["HVV","Vetenskapliga metoder",1,null,"VAE057","G2F",7.5,"Halvfart",null,null,1,null,"Distans","Vård GN","Hälsa och vård",1,0,1,1]
["HVV","Konsten att handleda i vårdande under verksamhetsförlagd utbildning",1,null,"VAE074","A1N",7.5,"Kvartsfart",null,null,null,1,"Normal","Vård AN","Hälsa och vård",1,1,null,1]
["HVV","Examensarbete i vårdvetenskap",1,null,"VAE096","A1E",15,"Halvfart",null,null,1,null,"Normal","Vård AN","Hälsa och vård",1,1,null,1]
["HVV","PM inför examensarbete inom anestesiologisk vård ",1,null,"VAE098","A1N",3,null,null,null,null,null,null,"Vård AN","Hälsa och vård",1,1,null,0]
["HVV","PM inför examensarbete inom hälso- och sjukvård i hemmet",1,null,"VAE099","A1N",3,null,null,null,null,null,null,"Vård AN","Hälsa och vård",1,1,null,0]
["HVV","PM inför examensarbete inom intensivvård ",1,null,"VAE102","A1N",3,null,null,null,null,null,null,"Vård AN","Hälsa och vård",1,1,null,0]
["HVV","PM inför examensarbete inom psykiatrisk omvårdnad ",1,null,"VAE168","A1N",3,null,null,null,null,null,null,"Vård AN","Hälsa och vård",1,1,null,0]
["HVV","Personcentrerad och återhämtningsinriktad psykiatrisk omvårdnad",1,null,"VAE169","A1N",3,"Helfart",1,null,null,null,"Normal","Vård AN","Hälsa och vård",1,1,null,0]
["HVV","Examensarbete i vårdvetenskap med inriktning mot omvårdnad",1,null,"VAE209","G2E",15,"Halvfart",null,null,1,null,"Normal","Vård GN","Hälsa och vård",1,0,null,1]
["HVV","Vård av personer med diabetes",1,null,"VAE227","A1N",7.5,"Kvartsfart",null,null,null,1,"Distans","Vård AN","Hälsa och vård",1,1,1,1]
["HVV","Omvårdnad vid astma och kroniskt obstruktiv lungsjukdom (KOL)",1,null,"VAE232","A1N",7.5,"Kvartsfart",null,null,null,1,"Distans","Vård AN","Hälsa och vård",1,1,1,1]
["HVV","Vetenskaplig teori och metod inom vårdvetenskap med inriktning mot omvårdnad",1,null,"VAE246","A1N",7.5,"Halvfart+Helfart",1,null,1,null,"Normal","Vård AN","Hälsa och vård",1,1,null,1]
["HVV","Specialistsjuksköterskans kärnkompetenser inom psykiatrisk omvårdnad",1,null,"VAE258","A1N",7.5,"Helfart",1,null,null,null,"Normal","Vård AN","Hälsa och vård",1,1,null,0]
["HVV","Att möta personer med komplexa vårdbehov inom psykiatrisk omvårdnad",1,null,"VAE275","A1F",7.5,"Helfart",1,null,null,null,"Normal","Vård AN","Hälsa och vård",1,1,null,0]
["HVV","Barnmorskeprogrammet",null,1,"ZOJ20",null,90,"Helfart",1,null,null,null,"Normal",null,"Hälsa och vård",1,0,null,0]
["HVV","Specialistsjuksköterskeutbildning med inriktning mot anestesisjukvård",null,1,"ZOJ22",null,60,"Helfart",1,null,null,null,"Normal",null,"Hälsa och vård",1,1,null,0]
["HVV","Specialistsjuksköterskeutbildning med inriktning mot intensivvård",null,1,"ZOJ23",null,60,"Helfart",1,null,null,null,"Normal",null,"Hälsa och vård",1,1,null,0]
["HVV","Specialistsjuksköterskeutbildning med inriktning mot psykiatrisk vård",null,1,"ZOJ24",null,60,"Helfart",1,null,null,null,"Normal",null,"Hälsa och vård",1,1,null,0]
["HVV","Specialistsjuksköterskeutbildning med inriktning primärvård ",null,1,"ZOJ27",null,60,"Helfart",1,null,null,null,"Normal",null,"Hälsa och vård",null,1,null,0]
["UKK","Engelska 1: språkfärdighet",1,null,"ENA121","GN",7.5,50,null,null,1,null,"Normal","Engelska","Språk, kommunikation och litteratur",null,0,null,1]
["UKK","Engelska 1: kommunikation",1,null,"ENA123","GN",7.5,50,null,null,1,null,"Normal","Engelska","Språk, kommunikation och litteratur",null,0,null,1]
["UKK","Engelska 1: språkvetenskap 1",1,null,"ENA124","GN",7.5,50,null,null,1,null,"Normal","Engelska","Språk, kommunikation och litteratur",null,0,null,1]
["UKK","Engelska 1: Litteratur 1",1,null,"ENA125","GN",7.5,50,null,null,1,null,"Normal","Engelska","Språk, kommunikation och litteratur",null,0,null,1]
["UKK","Engelska 2 Språk i arbetslivet",1,null,"ENA201","GN",15,100,1,null,null,null,"Distans","Engelska","Språk, kommunikation och litteratur",null,0,1,0]
["UKK","Engelska 2, Språkvetenskap 2",1,null,"ENA204","GN",7.5,50,null,null,1,null,"Normal","Engelska","Språk, kommunikation och litteratur",null,0,null,1]
["UKK","Engelska 2: Litteratur 2",1,null,"ENA208","GN",7.5,50,null,null,1,null,"Normal","Engelska","Språk, kommunikation och litteratur",null,0,null,1]
["UKK","Engelska 2: Akademisk kommunikation",1,null,"ENA221","GN",7.5,50,null,null,1,null,"Normal","Engelska","Språk, kommunikation och litteratur",null,0,null,1]
["UKK","Engelska 2: Den sociala interaktionens dynamik",1,null,"ENA222","GN",7.5,50,null,null,1,null,"Normal","Engelska","Språk, kommunikation och litteratur",null,0,null,1]
["UKK","Engelska 3, Amerikansk litteratur och ekokritik",1,null,"ENA303","GN",7.5,50,null,null,1,null,"Normal","Engelska","Språk, kommunikation och litteratur",null,0,null,1]
["UKK","Engelska 3, Social och regional variation",1,null,"ENA306","GN",7.5,50,null,null,1,null,"Normal","Engelska","Språk, kommunikation och litteratur",null,0,null,1]
["UKK","Engelska 4, Narrativ och teori",1,null,"ENA403","AN",7.5,25,null,null,null,1,"Distans","Engelska","Språk, kommunikation och litteratur",null,1,1,1]
["UKK","Engelska 4, Korpuslingvistik",1,null,"ENA404","AN",7.5,25,null,null,null,1,"Distans","Engelska","Språk, kommunikation och litteratur",null,1,1,1]
["UKK","Engelska 4: Självständigt arbete på magisternivå",1,null,"ENA411","AN",15,50,null,null,1,null,"Distans","Engelska","Språk, kommunikation och litteratur",null,1,1,1]
["UKK","Akademisk engelska ",1,null,"ENA801","GN",7.5,50,null,null,1,null,"Normal","Engelska","Språk, kommunikation och litteratur",null,0,null,1]
["UKK","Akademisk engelska för självständiga arbeten",1,null,"ENA802","GN",7.5,50,null,null,1,null,"Normal","Engelska","Språk, kommunikation och litteratur",null,0,null,1]
["UKK","Engelska i ett kontrastivt perspektiv",1,null,"ENA810","GN",7.5,50,null,null,1,null,"Distans","Engelska","Språk, kommunikation och litteratur",1,0,1,1]
["UKK","Experimentell fysik",1,null,"FYA015","GN",7.5,50,null,null,1,null,"Normal","Fysik","Matematik, matematikdidaktik och naturvetenskap",null,0,null,1]
["UKK","Dynamik, Krafter och Rörelse",1,null,"FYA016","GN",7.5,50,null,null,1,null,"Normal","Fysik","Matematik, matematikdidaktik och naturvetenskap",null,0,null,1]
["UKK","Mekanik II",1,null,"FYA018","GN",7.5,50,null,null,1,null,"Normal","Fysik","Matematik, matematikdidaktik och naturvetenskap",null,0,null,1]
["UKK","Huvudinstrument fortsättningskurs 1",1,null,"KMI085","GN",15,50,null,null,1,null,"Normal","Musik och opera","Musik och opera",1,0,null,1]
["UKK","Huvudinstrument fortsättningskurs 2",1,null,"KMI086","GN",15,50,null,null,1,null,"Normal","Musik och opera","Musik och opera",1,0,null,1]
["UKK","Huvudinstrument fortsättningskurs 3",1,null,"KMI107","GN",15,50,null,null,1,null,"Normal","Musik och opera","Musik och opera",1,0,null,1]
["UKK","Huvudinstrument fortsättningskurs 4",1,null,"KMI108","GN",15,50,null,null,1,null,"Normal","Musik och opera","Musik och opera",1,0,null,1]
["UKK","Huvudinstrument fortsättningskurs 5",1,null,"KMI114","GN",15,50,null,null,1,null,"Normal","Musik och opera","Musik och opera",1,0,null,1]
["UKK","Huvudinstrument fortsättningskurs 6",1,null,"KMI115","GN",15,50,null,null,1,null,"Normal","Musik och opera","Musik och opera",1,0,null,1]
["UKK","Huvudinstrument fortsättningskurs 1 för sångare",1,null,"KMI123","GN",15,50,null,null,1,null,"Normal","Musik och opera","Musik och opera",1,0,null,1]
["UKK","Huvudinstrument fortsättningskurs 2 för sångare",1,null,"KMI124","GN",15,50,null,null,1,null,"Normal","Musik och opera","Musik och opera",1,0,null,1]
["UKK","Nordic Noir - perspektiv på nordisk kriminallitteratur ",1,null,"LIA027","GN",7.5,25,null,null,null,1,"Distans","Litteraturvetenskap","Språk, kommunikation och litteratur",null,0,1,1]
["UKK","Det otäcka - skräck och litteratur",1,null,"LIA028","GN",7.5,25,null,null,null,1,"Distans","Litteraturvetenskap","Språk, kommunikation och litteratur",null,0,1,1]
["UKK","Det roliga - humor och litteratur",1,null,"LIA029","GN",7.5,25,null,null,null,1,"Distans","Litteraturvetenskap","Språk, kommunikation och litteratur",null,0,1,1]
["UKK","Litteraturvetenskap 3: Självständigt arbete på kandidatnivå",1,null,"LIA040","GN",15,100,1,null,null,null,"Distans","Litteraturvetenskap","Språk, kommunikation och litteratur",null,0,1,{"$f":"SUM(J406:L406)","v":0}]
["UKK","Litteraturvetenskap 3: Tematisk fördjupning",1,null,"LIA041","GN",7.5,50,null,null,1,null,"Distans","Litteraturvetenskap","Språk, kommunikation och litteratur",null,0,1,1]
["UKK","Litteraturvetenskap 3: Teori och metod",1,null,"LIA042","GN",7.5,50,null,null,1,null,"Distans","Litteraturvetenskap","Språk, kommunikation och litteratur",null,0,1,1]
["UKK","Litteraturvetenskap 4: Självständigt arbete på magisternivå",1,null,"LIA043","AN",15,100,1,null,null,null,"Distans","Litteraturvetenskap","Språk, kommunikation och litteratur",null,1,1,0]
["UKK","Litteraturvetenskap 4: Tematisk fördjupning",1,null,"LIA044","AN",7.5,50,null,null,1,null,"Distans","Litteraturvetenskap","Språk, kommunikation och litteratur",null,1,1,1]
["UKK","Litteraturvetenskap 4: Teori och metod",1,null,"LIA048","AN",7.5,50,null,null,1,null,"Distans","Litteraturvetenskap","Språk, kommunikation och litteratur",null,1,1,1]
["UKK","Geometri",1,null,"MAA038","GN",7.5,25,null,null,null,1,"Distans","Matematik","Matematik, matematikdidaktik och naturvetenskap",1,0,1,1]
["UKK","Matematik med didaktik för grundlärare i förskoleklass och grundskolans årskurs 1-6, del 1",1,null,"MAA039","GN",15,25,null,null,null,1,"Distans","Undervisning och lärande","Undervisning och lärande",1,0,1,1]
["UKK","Tillämpad matematik för miljötekniker",1,null,"MAA041","GN",7.5,50,null,null,1,null,"Distans","Matematik","Matematik, matematikdidaktik och naturvetenskap",null,0,1,1]
["UKK","Numeriska metoder med MATLAB",1,null,"MAA042","GN",7.5,50,null,null,1,null,"Normal","Matematik","Matematik, matematikdidaktik och naturvetenskap",null,0,null,1]
["UKK","Matematik med didaktik för grundlärare i förskoleklass och grundskolans årskurs 1-6, del 2",1,null,"MAA046","GN",15,25,null,null,null,1,"Distans","Undervisning och lärande","Undervisning och lärande",1,0,1,1]
["UKK","Envariabelkalkyl",1,null,"MAA048","GN",7.5,50,null,null,1,null,"Normal","Matematik","Matematik, matematikdidaktik och naturvetenskap",null,0,null,1]
["UKK","Kalkyl, grundkurs",1,null,"MAA049","GN",7.5,50,null,null,1,null,"Normal","Matematik","Matematik, matematikdidaktik och naturvetenskap",null,0,null,1]
["UKK","Matematik grundkurs",1,null,"MAA121","GN",7.5,25,null,null,null,1,"Distans","Matematik","Matematik, matematikdidaktik och naturvetenskap",null,0,1,1]
["UKK","Flervariabelkalkyl",1,null,"MAA152","GN",7.5,50,null,null,1,null,"Normal","Matematik","Matematik, matematikdidaktik och naturvetenskap",null,0,null,1]
["UKK","Dynamiska system, iterativa processer och algoritmer",1,null,"MAA154","GN",7.5,50,null,null,1,null,"Normal","Matematik","Matematik, matematikdidaktik och naturvetenskap",null,0,null,1]
["UKK","Datoralgebra med tillämpningar",1,null,"MAA155","GN",7.5,50,null,null,1,null,"Normal","Matematik","Matematik, matematikdidaktik och naturvetenskap",null,0,null,1]
["UKK","Simulering",1,null,"MAA313","GN",7.5,50,null,null,1,null,"Normal","Matematik","Matematik, matematikdidaktik och naturvetenskap",null,0,null,1]
["UKK","Operationsanalys",1,null,"MAA315","GN",7.5,50,null,null,1,null,"Normal","Matematik","Matematik, matematikdidaktik och naturvetenskap",null,0,null,1]
["UKK","Differentialekvationer, grundkurs",1,null,"MAA316","GN",7.5,50,null,null,1,null,"Normal","Matematik","Matematik, matematikdidaktik och naturvetenskap",null,0,null,1]
["UKK","Introduktion till algebraiska strukturer",1,null,"MAA317","GN",7.5,50,null,null,1,null,"Normal","Matematik","Matematik, matematikdidaktik och naturvetenskap",null,0,null,1]
["UKK","Introduktion till reell och komplex analys",1,null,"MAA318","GN",7.5,50,null,null,1,null,"Normal","Matematik","Matematik, matematikdidaktik och naturvetenskap",null,0,null,1]
["UKK","Introduktion till stokastiska processer",1,null,"MAA320","GN",7.5,50,null,null,1,null,"Normal","Matematik","Matematik, matematikdidaktik och naturvetenskap",null,0,null,1]
["UKK","Analytisk finans med MATLAB",1,null,"MAA321","GN",7.5,50,null,null,1,null,"Normal","Matematik","Matematik, matematikdidaktik och naturvetenskap",null,0,null,1]
["UKK","Fourieranalys",1,null,"MAA323","GN",7.5,50,null,null,1,null,"Normal","Matematik","Matematik, matematikdidaktik och naturvetenskap",null,0,null,1]
["UKK","Portföljteori I",1,null,"MAA324","GN",7.5,50,null,null,1,null,"Normal","Matematik","Matematik, matematikdidaktik och naturvetenskap",null,0,null,1,1]
["UKK","Finita elementmetoden",1,null,"MAA325","GN",7.5,50,null,null,1,null,"Normal","Matematik","Matematik, matematikdidaktik och naturvetenskap",null,0,null,1]
["UKK","Matematiken bakom internet",1,null,"MAA507","AN",7.5,50,null,null,1,null,"Normal","Matematik","Matematik, matematikdidaktik och naturvetenskap",null,1,null,1]
["UKK","Dataanalys, klustring och klassificering",1,null,"MAA512","AN",7.5,50,null,null,1,null,"Normal","Matematik","Matematik, matematikdidaktik och naturvetenskap",null,1,null,1]
["UKK","Beräkningskomplexitet",1,null,"MAA513","AN",7.5,50,null,null,1,null,"Normal","Matematik","Matematik, matematikdidaktik och naturvetenskap",null,1,null,1]
["UKK","Multivariat statistik",1,null,"MAA516","AN",7.5,50,null,null,1,null,"Normal","Matematik","Matematik, matematikdidaktik och naturvetenskap",null,1,null,1]
["UKK","Numerisk linjär algebra",1,null,"MAA517","AN",7.5,50,null,null,1,null,"Normal","Matematik","Matematik, matematikdidaktik och naturvetenskap",null,1,null,1]
["UKK","Portföljteori II",1,null,"MAA518","AN",7.5,50,null,null,1,null,"Normal","Matematik","Matematik, matematikdidaktik och naturvetenskap",null,1,null,1]
["UKK","Grafteori, nätverk och tillämpningar",1,null,"MAA600","AN",7.5,50,null,null,1,null,"Normal","Matematik","Matematik, matematikdidaktik och naturvetenskap",null,1,null,1]
["UKK","Optimering",1,null,"MAA700","AN",7.5,50,null,null,1,null,"Normal","Matematik","Matematik, matematikdidaktik och naturvetenskap",null,1,null,1]
["UKK","Tillämpad matrisanalys",1,null,"MAA704","AN",7.5,50,null,null,1,null,"Normal","Matematik","Matematik, matematikdidaktik och naturvetenskap",null,1,null,1]
["UKK","Programvara för matematisk statistik och finansiell verksamhet",1,null,"MAA709","AN",7.5,50,null,null,1,null,"Normal","Matematik","Matematik, matematikdidaktik och naturvetenskap",null,1,null,1]
["UKK","Python med finansiella tillämpningar",1,null,"MAA711","AN",15,50,null,null,1,null,"Normal","Matematik","Matematik, matematikdidaktik och naturvetenskap",null,1,null,1]
["UKK","Mekanik I",1,null,"MFY006","GN",7.5,50,null,null,1,null,"Normal","Fysik","Matematik, matematikdidaktik och naturvetenskap",null,0,null,1]
["UKK","Diskret matematik",1,null,"MMA122","GN",7.5,50,null,null,1,null,"Normal","Matematik","Matematik, matematikdidaktik och naturvetenskap",null,0,null,1]
["UKK","Matematisk logik med datainriktning",1,null,"MMA130","GN",7.5,50,null,null,1,null,"Normal","Matematik","Matematik, matematikdidaktik och naturvetenskap",null,0,null,1]
["UKK","Sannolikhetslära",1,null,"MMA306","GN",7.5,50,null,null,1,null,"Normal","Matematik","Matematik, matematikdidaktik och naturvetenskap",null,0,null,1]
["UKK","Statistisk inferensteori",1,null,"MMA308","GN",7.5,50,null,null,1,null,"Normal","Matematik","Matematik, matematikdidaktik och naturvetenskap",null,0,null,1]
["UKK","Diskret matematik, fortsättningskurs",1,null,"MMA500","AN",7.5,50,null,null,1,null,"Normal","Matematik","Matematik, matematikdidaktik och naturvetenskap",null,1,null,1]
["UKK","Abstrakt algebra",1,null,"MMA501","AN",7.5,50,null,null,1,null,"Normal","Matematik","Matematik, matematikdidaktik och naturvetenskap",null,1,null,1]
["UKK","Analysens grunder",1,null,"MMA503","AN",7.5,50,null,null,1,null,"Normal","Matematik","Matematik, matematikdidaktik och naturvetenskap",null,1,null,1]
["UKK","Stokastiska processer",1,null,"MMA701","AN",7.5,50,null,null,1,null,"Normal","Matematik","Matematik, matematikdidaktik och naturvetenskap",null,1,null,1]
["UKK","Tidsserieanalys",1,null,"MMA702","AN",7.5,50,null,null,1,null,"Normal","Matematik","Matematik, matematikdidaktik och naturvetenskap",null,1,null,1]
["UKK","Analytisk finans I",1,null,"MMA707","AN",7.5,50,null,null,1,null,"Normal","Matematik","Matematik, matematikdidaktik och naturvetenskap",1,1,null,1,1]
["UKK","Analytisk finans II",1,null,"MMA708","AN",7.5,50,null,null,1,null,"Normal","Matematik","Matematik, matematikdidaktik och naturvetenskap",1,1,null,1,1]
["UKK","Differentialekvationer med finansiella tillämpningar",1,null,"MMA712","AN",7.5,50,null,null,1,null,"Normal","Matematik","Matematik, matematikdidaktik och naturvetenskap",null,1,null,1]
["UKK","Försäkringsmatematik",1,null,"MMA713","AN",7.5,50,null,null,1,null,"Normal","Matematik","Matematik, matematikdidaktik och naturvetenskap",null,1,null,1]
["UKK","Språklig och kulturell mångfald",1,null,"OAU035","AN",7.5,50,null,null,1,null,"Distans","Undervisning och lärande","Undervisning och lärande",1,1,1,1,1]
["UKK","Vetenskaplig metod",1,null,"OAU058","AN",7.5,50,null,null,1,null,"Distans","Undervisning och lärande","Undervisning och lärande",1,1,1,1,1]
["UKK","Didaktik som kunskapsområde och forskningsfält",1,null,"OAU073","AN",7.5,50,null,null,1,null,"Distans","Undervisning och lärande","Undervisning och lärande",1,1,1,1,1]
["UKK","Didaktiska forskningsmiljöer - en fördjupning",1,null,"OAU074","AN",7.5,50,null,null,1,null,"Distans","Undervisning och lärande","Undervisning och lärande",1,1,1,1,1]
["UKK","Kvantitativ och kvalitativ metod",1,null,"OAU075","AN",7.5,50,null,null,1,null,"Distans","Undervisning och lärande","Undervisning och lärande",1,1,1,1,1]
["UKK","Vetenskaplig metod och fältstudier",1,null,"OAU076","AN",7.5,50,null,null,1,null,"Distans","Undervisning och lärande","Undervisning och lärande",1,1,1,1,1]
["UKK","Självständigt arbete magister i didaktik",1,null,"OAU224","AN",15,50,null,null,1,null,"Distans","Undervisning och lärande","Undervisning och lärande",1,1,1,{"$f":"SUM(J464:L464)","v":1},1]
["UKK","Självständigt arbete master i didaktik",1,null,"OAU225","AN",15,50,null,null,1,null,"Distans","Undervisning och lärande","Undervisning och lärande",1,1,1,1,1]
["UKK","Ämnesdidaktisk fördjupning mot förskolan",1,null,"OAU235","AN",15,50,null,null,1,null,"Distans","Undervisning och lärande","Undervisning och lärande",1,1,1,1,1]
["UKK","Förskoledidaktisk forskning",1,null,"OAU236","AN",7.5,50,null,null,1,null,"Distans","Undervisning och lärande","Undervisning och lärande",1,1,1,1,1]
["UKK","Didaktik - en introduktion",1,null,"OAU237","AN",15,50,null,null,1,null,"Distans","Undervisning och lärande","Undervisning och lärande",1,1,1,1,1]
["UKK","Ämnesdidaktisk fördjupning",1,null,"OAU238","AN",15,50,null,null,1,null,"Distans","Undervisning och lärande","Undervisning och lärande",1,1,1,1,1]
["UKK","De samhällsorienterande ämnena och deras didaktik för grundlärare i grundskolans årskurs 4-6",1,null,"OAU267","GN",30,50,null,null,1,null,"Distans","Undervisning och lärande","Undervisning och lärande",1,0,1,1]
["UKK","Valfri fördjupning i didaktik",1,null,"OAU285","AN",15,50,null,null,1,null,"Distans","Undervisning och lärande","Undervisning och lärande",1,1,1,1,1]
["UKK","Valfri fördjupning i förskoledidaktik och forskning",1,null,"OAU286","AN",15,50,null,null,1,null,"Distans","Undervisning och lärande","Undervisning och lärande",1,1,1,1,1]
["UKK","Lärare och handledning",1,null,"PEA069","GN",7.5,17,null,null,null,1,"Normal","Undervisning och lärande","Undervisning och lärande",1,0,null,1]
["UKK","Lärare och handledning II",1,null,"PEA092","AN",7.5,17,null,null,null,1,"Normal","Undervisning och lärande","Undervisning och lärande",1,1,null,1]
["UKK","Pedagogik 91-120",1,null,"PEA102","AN",30,100,1,null,null,null,"Normal","Undervisning och lärande","Undervisning och lärande",null,1,null,0]
["UKK","Att arbeta som specialpedagog",1,null,"SQA128","AN",15,50,null,null,1,null,"Distans","Undervisning och lärande","Undervisning och lärande",1,1,1,1]
["UKK","Att som specialpedagog arbeta med kvalificerade samtal",1,null,"SQA129","AN",7.5,25,null,null,null,1,"Distans","Undervisning och lärande","Undervisning och lärande",1,1,1,1]
["UKK","Kvalificerade samtal i specialpedagogisk verksamhet",1,null,"SQA130","AN",7.5,25,null,null,null,1,"Distans","Undervisning och lärande","Undervisning och lärande",1,1,1,1]
["UKK","Neuropsykiatriska funktionsnedsättningar/svårigheter för speciallärare och specialpedagoger",1,null,"SQA131","AN",7.5,25,null,null,null,1,"Distans","Undervisning och lärande","Undervisning och lärande",1,1,1,1]
["UKK","Neuropsykiatriska funktionsnedsättningar/svårigheter",1,null,"SQA132","GN",7.5,25,null,null,null,1,"Distans","Undervisning och lärande","Undervisning och lärande",1,0,1,1]
["UKK","Pedagogisk utredning",1,null,"SQA133","GN",7.5,25,null,null,null,1,"Distans","Undervisning och lärande","Undervisning och lärande",1,0,1,1]
["UKK","Sociala samspelsprocesser för specialpedagoger",1,null,"SQA134","AN",7.5,25,null,null,null,1,"Distans","Undervisning och lärande","Undervisning och lärande",1,1,1,1]
["UKK","Litteratur och flerspråkighet",1,null,"SSA002","GN",7.5,25,null,null,null,1,"Distans","Svenska som andraspråk","Språk, kommunikation och litteratur",1,0,1,1]
["UKK","Uppsats i svenska som andraspråk",1,null,"SSA006","GN",7.5,50,null,null,1,null,"Normal","Svenska som andraspråk","Språk, kommunikation och litteratur",null,0,null,1]
["UKK","Fonetik i ett andraspråksperspektiv",1,null,"SSA008","GN",7.5,25,null,null,null,1,"Distans","Svenska som andraspråk","Språk, kommunikation och litteratur",1,0,1,1]
["UKK","Grammatik i ett tvärspråkligt perspektiv",1,null,"SSA219","GN",7.5,25,null,null,null,1,"Distans","Svenska som andraspråk","Språk, kommunikation och litteratur",1,0,1,1]
["UKK","Andraspråksinlärning",1,null,"SSA220","GN",7.5,25,null,null,null,1,"Distans","Svenska som andraspråk","Språk, kommunikation och litteratur",1,0,1,1]
["UKK","Att lära på sitt andraspråk",1,null,"SSA223","GN",7.5,50,null,null,1,null,"Normal","Svenska som andraspråk","Språk, kommunikation och litteratur",null,0,null,1]
["UKK","Sociolingvistiska perspektiv på flerspråkighet",1,null,"SSA225","GN",7.5,25,null,null,null,1,"Distans","Svenska som andraspråk","Språk, kommunikation och litteratur",1,0,1,1]
["UKK","Teori och metod i andraspråksforskning",1,null,"SSA228","GN",7.5,50,null,null,1,null,"Normal","Svenska som andraspråk","Språk, kommunikation och litteratur",null,0,null,1]
["UKK","Forskning om undervisning, lärande och bedömning i det flerspråkiga klassrummet",1,null,"SSA243","GN",7.5,50,null,null,1,null,"Normal","Svenska som andraspråk","Språk, kommunikation och litteratur",null,0,null,1]
["UKK","Invandring och kulturmöten",1,null,"SSA246","GN",7.5,25,null,null,null,1,"Distans","Svenska som andraspråk","Språk, kommunikation och litteratur",1,0,1,1]
["UKK","Språkutvecklingsanalys",1,null,"SSA248","GN",7.5,50,null,null,1,null,"Normal","Svenska som andraspråk","Språk, kommunikation och litteratur",null,0,null,1]
["UKK","Uppsats i svenska som andraspråk",1,null,"SSA250","GN",15,25,null,null,null,1,"Distans","Svenska som andraspråk","Språk, kommunikation och litteratur",1,0,1,1]
["UKK","Fördjupningskurs i sociolingvistik",1,null,"SVA014","AN",7.5,50,null,null,1,null,"Normal","Svenska","Språk, kommunikation och litteratur",null,1,null,1]
["UKK","Magisteruppsats i svenska",1,null,"SVA015","AN",15,50,null,null,1,null,"Normal","Svenska","Språk, kommunikation och litteratur",null,1,null,1]
["UKK","Språkvetenskapliga teorier och metoder",1,null,"SVA017","AN",7.5,50,null,null,1,null,"Normal","Svenska","Språk, kommunikation och litteratur",null,1,null,1]
["UKK","Interkulturell kommunikation",1,null,"SVA024","GN",7.5,50,null,null,1,null,"Normal","Svenska","Språk, kommunikation och litteratur",null,0,null,1]
["UKK","Skriftlig kommunikation i teori och praktik",1,null,"SVA031","GN",7.5,50,null,null,1,null,"Normal","Svenska","Språk, kommunikation och litteratur",null,0,null,1]
["UKK","Språk i Norden",1,null,"SVA035","GN",7.5,50,null,null,1,null,"Normal","Svenska","Språk, kommunikation och litteratur",null,0,null,1]
["UKK","Kommunikation i arbetslivet 1",1,null,"SVA050","GN",7.5,50,null,null,1,null,"Normal","Svenska","Språk, kommunikation och litteratur",null,0,null,1]
["UKK","Grammatik",1,null,"SVA108","GN",7.5,50,null,null,1,null,"Normal","Svenska","Språk, kommunikation och litteratur",null,0,null,1]
["UKK","Retorik",1,null,"SVA304","GN",7.5,50,null,null,1,null,"Normal","Svenska","Språk, kommunikation och litteratur",null,0,null,1]
["UKK","Masterprogram i teknisk matematik",null,1,"AMM04","AN",120,100,1,null,null,null,"Normal","Matematik","Matematik, matematikdidaktik och naturvetenskap",null,1,null,0]
["UKK","Speciallärarprogrammet, specialiseringar: matematikutveckling, språk-, skriv- och läsutveckling, utvecklingsstörning",null,1,"AUM01","AN",90,50,null,null,1,null,"Distans","Undervisning och lärande","Undervisning och lärande",1,1,1,1]
["UKK","Specialpedagogprogrammet",null,1,"AVM01","AN",90,50,null,null,1,null,"Distans","Undervisning och lärande","Undervisning och lärande",1,1,1,1]
["UKK","Förskollärarprogrammet",null,1,"GFXE1/GFXV1","GN",210,100,1,null,null,null,"Distans","Undervisning och lärande","Undervisning och lärande",null,0,1,0]
["UKK","Kompletterande pedagogisk utbildning, inriktningar: grundskolan 7-9, gymnasieskolan",null,1,"GLM01","GN",90,"75/100",1,1,null,null,"Distans","Undervisning och lärande","Undervisning och lärande",1,0,1,1]
["UKK","Kompletterande pedagogisk utbildning - grundskolan 4-6",null,1,"GLM02","GN",75,100,1,null,null,null,"Distans","Undervisning och lärande","Undervisning och lärande",1,0,1,0]
["UKK","Grundlärarprogrammet med inriktning mot arbete i föreskoleklass och grundskolans årskurs 1-3 - arbetsintegrerat",null,1,"GRY02","GN",240,50,null,null,1,null,"Normal","Undervisning och lärande","Undervisning och lärande",1,0,null,1]
["UKK","Masterprogram i didaktik",null,1,"GSL01","AN",120,50,null,null,1,null,"Distans","Undervisning och lärande","Undervisning och lärande",1,1,1,1]
["UKK","Masterprogram i Financial Engineering",null,1,"ZMS20","AN",120,100,1,null,null,null,"Normal","Matematik","Matematik, matematikdidaktik och naturvetenskap",null,1,null,0]
["UKK","Kompletterande pedagogisk utbildning - grundskolan F-3",null,1,"?","GN",75,100,1,null,null,null,"Distans","Undervisning och lärande","Undervisning och lärande",1,0,1,0]
["UKK","Masterprogram i västerländsk konstmusik och opera, inriktningar: kammarmusik, kammaropera",null,1,"?","AN",120,100,1,null,null,null,"Normal","Musik och opera","Musik och opera",null,1,null,0]
[]
[null,"Antal kurser & Kurspaket",{"$f":"SUM(C2:C514)","v":486}]
[null,"Antal program",{"$f":"SUM(D2:D514)","v":27}]

{"sheet":"Riktade MDU total + Utb.omr.","index":1,"n_rows":16,"n_cols":12,"rows_kept":16,"cut":false,"hidden":false,"merged":[[2,1,2,4]]}
[]
[null,"Utbildningar särskilt riktade till/framtagna för yrkesverksamma "]
[null,"Utbildningar med start HT22 eller VT23 (dubbla starter ej räknade)"]
[]
[null,"Utbildningstyp","Nivå","Antal MDU"]
[null,"Program","Avancerad",{"$f":"SUM(D13:L13)","v":15}]
[null,"Program","Grund",{"$f":"SUM(D14:L14)","v":5}]
[null,"Kurser & Kurspaket","Avancerad",{"$f":"SUM(D15:L15)","v":162}]
[null,"Kurser & Kurspaket","Grund",{"$f":"SUM(D16:L16)","v":204}]
[]
[null,null,null,"Design","Ekonomi och juridik","Hälsa och vård","Matematik, matematikdidaktik och naturvetenskap","Musik och opera","Samhälls- och beteendevetenskap","Språk, kommunikation och litteratur","Teknik","Undervisning och lärande"]
[null,"Utbildningstyp","Nivå","Antal","Antal","Antal","Antal","Antal","Antal","Antal","Antal","Antal"]
[null,"Program","Avancerad",{"$f":"COUNTIFS('Utbildningstillfällen 2022-2023'!O2:O514,\"=Design\",'Utbildningstillfällen 2022-2023'!D2:D514,\"=1\",'Utbildningstillfällen 2022-2023'!Q2:Q514,\"=1\",'Utbildningstillfällen 2022-2023'!P2:P514,\"=1\")","v":1},{"$f":"COUNTIFS('Utbildningstillfällen 2022-2023'!O2:O514,\"=Ekonomi och juridik\",'Utbildningstillfällen 2022-2023'!D2:D514,\"=1\",'Utbildningstillfällen 2022-2023'!Q2:Q514,\"=1\",'Utbildningstillfällen 2022-2023'!P2:P514,\"=1\")","v":3},{"$f":"COUNTIFS('Utbildningstillfällen 2022-2023'!O2:O514,\"=Hälsa och vård\",'Utbildningstillfällen 2022-2023'!D2:D514,\"=1\",'Utbildningstillfällen 2022-2023'!Q2:Q514,\"=1\",'Utbildningstillfällen 2022-2023'!P2:P514,\"=1\")","v":3},{"$f":"COUNTIFS('Utbildningstillfällen 2022-2023'!O2:O514,\"=Matematik, matematikdidaktik och naturvetenskap\",'Utbildningstillfällen 2022-2023'!D2:D514,\"=1\",'Utbildningstillfällen 2022-2023'!Q2:Q514,\"=1\",'Utbildningstillfällen 2022-2023'!P2:P514,\"=1\")","v":0},{"$f":"COUNTIFS('Utbildningstillfällen 2022-2023'!O2:O514,\"=Musik och opera\",'Utbildningstillfällen 2022-2023'!D2:D514,\"=1\",'Utbildningstillfällen 2022-2023'!Q2:Q514,\"=1\",'Utbildningstillfällen 2022-2023'!P2:P514,\"=1\")","v":0},{"$f":"COUNTIFS('Utbildningstillfällen 2022-2023'!O2:O514,\"=Samhälls- och beteendevetenskap\",'Utbildningstillfällen 2022-2023'!D2:D514,\"=1\",'Utbildningstillfällen 2022-2023'!Q2:Q514,\"=1\",'Utbildningstillfällen 2022-2023'!P2:P514,\"=1\")","v":0},{"$f":"COUNTIFS('Utbildningstillfällen 2022-2023'!O2:O514,\"=Språk, kommunikation och litteratur\",'Utbildningstillfällen 2022-2023'!D2:D514,\"=1\",'Utbildningstillfällen 2022-2023'!Q2:Q514,\"=1\",'Utbildningstillfällen 2022-2023'!P2:P514,\"=1\")","v":0},{"$f":"COUNTIFS('Utbildningstillfällen 2022-2023'!O2:O514,\"=Teknik\",'Utbildningstillfällen 2022-2023'!D2:D514,\"=1\",'Utbildningstillfällen 2022-2023'!Q2:Q514,\"=1\",'Utbildningstillfällen 2022-2023'!P2:P514,\"=1\")","v":5},{"$f":"COUNTIFS('Utbildningstillfällen 2022-2023'!O2:O514,\"=Undervisning och lärande\",'Utbildningstillfällen 2022-2023'!D2:D514,\"=1\",'Utbildningstillfällen 2022-2023'!Q2:Q514,\"=1\",'Utbildningstillfällen 2022-2023'!P2:P514,\"=1\")","v":3}]
[null,"Program","Grund",{"$f":"COUNTIFS('Utbildningstillfällen 2022-2023'!O2:O514,\"=Design\",'Utbildningstillfällen 2022-2023'!D2:D514,\"=1\",'Utbildningstillfällen 2022-2023'!Q2:Q514,\"=0\",'Utbildningstillfällen 2022-2023'!P2:P514,\"=1\")","v":0},{"$f":"COUNTIFS('Utbildningstillfällen 2022-2023'!O2:O514,\"=Ekonomi och juridik\",'Utbildningstillfällen 2022-2023'!D2:D514,\"=1\",'Utbildningstillfällen 2022-2023'!Q2:Q514,\"=0\",'Utbildningstillfällen 2022-2023'!P2:P514,\"=1\")","v":0},{"$f":"COUNTIFS('Utbildningstillfällen 2022-2023'!O2:O514,\"=Hälsa och vård\",'Utbildningstillfällen 2022-2023'!D2:D514,\"=1\",'Utbildningstillfällen 2022-2023'!Q2:Q514,\"=0\",'Utbildningstillfällen 2022-2023'!P2:P514,\"=1\")","v":1},{"$f":"COUNTIFS('Utbildningstillfällen 2022-2023'!O2:O514,\"=Matematik, matematikdidaktik och naturvetenskap\",'Utbildningstillfällen 2022-2023'!D2:D514,\"=1\",'Utbildningstillfällen 2022-2023'!Q2:Q514,\"=0\",'Utbildningstillfällen 2022-2023'!P2:P514,\"=1\")","v":0},{"$f":"COUNTIFS('Utbildningstillfällen 2022-2023'!O2:O514,\"=Musik och opera\",'Utbildningstillfällen 2022-2023'!D2:D514,\"=1\",'Utbildningstillfällen 2022-2023'!Q2:Q514,\"=0\",'Utbildningstillfällen 2022-2023'!P2:P514,\"=1\")","v":0},{"$f":"COUNTIFS('Utbildningstillfällen 2022-2023'!O2:O514,\"=Samhälls- och beteendevetenskap\",'Utbildningstillfällen 2022-2023'!D2:D514,\"=1\",'Utbildningstillfällen 2022-2023'!Q2:Q514,\"=0\",'Utbildningstillfällen 2022-2023'!P2:P514,\"=1\")","v":0},{"$f":"COUNTIFS('Utbildningstillfällen 2022-2023'!O2:O514,\"=Språk, kommunikation och litteratur\",'Utbildningstillfällen 2022-2023'!D2:D514,\"=1\",'Utbildningstillfällen 2022-2023'!Q2:Q514,\"=0\",'Utbildningstillfällen 2022-2023'!P2:P514,\"=1\")","v":0},{"$f":"COUNTIFS('Utbildningstillfällen 2022-2023'!O2:O514,\"=Teknik\",'Utbildningstillfällen 2022-2023'!D2:D514,\"=1\",'Utbildningstillfällen 2022-2023'!Q2:Q514,\"=0\",'Utbildningstillfällen 2022-2023'!P2:P514,\"=1\")","v":0},{"$f":"COUNTIFS('Utbildningstillfällen 2022-2023'!O2:O514,\"=Undervisning och lärande\",'Utbildningstillfällen 2022-2023'!D2:D514,\"=1\",'Utbildningstillfällen 2022-2023'!Q2:Q514,\"=0\",'Utbildningstillfällen 2022-2023'!P2:P514,\"=1\")","v":4}]
[null,"Kurser & Kurspaket","Avancerad",{"$f":"COUNTIFS('Utbildningstillfällen 2022-2023'!O2:O514,\"=Design\",'Utbildningstillfällen 2022-2023'!C2:C514,\"=1\",'Utbildningstillfällen 2022-2023'!Q2:Q514,\"=1\",'Utbildningstillfällen 2022-2023'!P2:P514,\"=1\")","v":3},{"$f":"COUNTIFS('Utbildningstillfällen 2022-2023'!O2:O514,\"=Ekonomi och juridik\",'Utbildningstillfällen 2022-2023'!C2:C514,\"=1\",'Utbildningstillfällen 2022-2023'!Q2:Q514,\"=1\",'Utbildningstillfällen 2022-2023'!P2:P514,\"=1\")","v":7},{"$f":"COUNTIFS('Utbildningstillfällen 2022-2023'!O2:O514,\"=Hälsa och vård\",'Utbildningstillfällen 2022-2023'!C2:C514,\"=1\",'Utbildningstillfällen 2022-2023'!Q2:Q514,\"=1\",'Utbildningstillfällen 2022-2023'!P2:P514,\"=1\")","v":44},{"$f":"COUNTIFS('Utbildningstillfällen 2022-2023'!O2:O514,\"=Matematik, matematikdidaktik och naturvetenskap\",'Utbildningstillfällen 2022-2023'!C2:C514,\"=1\",'Utbildningstillfällen 2022-2023'!Q2:Q514,\"=1\",'Utbildningstillfällen 2022-2023'!P2:P514,\"=1\")","v":2},{"$f":"COUNTIFS('Utbildningstillfällen 2022-2023'!O2:O514,\"=Musik och opera\",'Utbildningstillfällen 2022-2023'!C2:C514,\"=1\",'Utbildningstillfällen 2022-2023'!Q2:Q514,\"=1\",'Utbildningstillfällen 2022-2023'!P2:P514,\"=1\")","v":0},{"$f":"COUNTIFS('Utbildningstillfällen 2022-2023'!O2:O514,\"=Samhälls- och beteendevetenskap\",'Utbildningstillfällen 2022-2023'!C2:C514,\"=1\",'Utbildningstillfällen 2022-2023'!Q2:Q514,\"=1\",'Utbildningstillfällen 2022-2023'!P2:P514,\"=1\")","v":5},{"$f":"COUNTIFS('Utbildningstillfällen 2022-2023'!O2:O514,\"=Språk, kommunikation och litteratur\",'Utbildningstillfällen 2022-2023'!C2:C514,\"=1\",'Utbildningstillfällen 2022-2023'!Q2:Q514,\"=1\",'Utbildningstillfällen 2022-2023'!P2:P514,\"=1\")","v":0},{"$f":"COUNTIFS('Utbildningstillfällen 2022-2023'!O2:O514,\"=Teknik\",'Utbildningstillfällen 2022-2023'!C2:C514,\"=1\",'Utbildningstillfällen 2022-2023'!Q2:Q514,\"=1\",'Utbildningstillfällen 2022-2023'!P2:P514,\"=1\")","v":81},{"$f":"COUNTIFS('Utbildningstillfällen 2022-2023'!O2:O514,\"=Undervisning och lärande\",'Utbildningstillfällen 2022-2023'!C2:C514,\"=1\",'Utbildningstillfällen 2022-2023'!Q2:Q514,\"=1\",'Utbildningstillfällen 2022-2023'!P2:P514,\"=1\")","v":20}]
[null,"Kurser & Kurspaket","Grund",{"$f":"COUNTIFS('Utbildningstillfällen 2022-2023'!O2:O514,\"=Design\",'Utbildningstillfällen 2022-2023'!C2:C514,\"=1\",'Utbildningstillfällen 2022-2023'!Q2:Q514,\"=0\",'Utbildningstillfällen 2022-2023'!P2:P514,\"=1\")","v":14},{"$f":"COUNTIFS('Utbildningstillfällen 2022-2023'!O2:O514,\"=Ekonomi och juridik\",'Utbildningstillfällen 2022-2023'!C2:C514,\"=1\",'Utbildningstillfällen 2022-2023'!Q2:Q514,\"=0\",'Utbildningstillfällen 2022-2023'!P2:P514,\"=1\")","v":54},{"$f":"COUNTIFS('Utbildningstillfällen 2022-2023'!O2:O514,\"=Hälsa och vård\",'Utbildningstillfällen 2022-2023'!C2:C514,\"=1\",'Utbildningstillfällen 2022-2023'!Q2:Q514,\"=0\",'Utbildningstillfällen 2022-2023'!P2:P514,\"=1\")","v":12},{"$f":"COUNTIFS('Utbildningstillfällen 2022-2023'!O2:O514,\"=Matematik, matematikdidaktik och naturvetenskap\",'Utbildningstillfällen 2022-2023'!C2:C514,\"=1\",'Utbildningstillfällen 2022-2023'!Q2:Q514,\"=0\",'Utbildningstillfällen 2022-2023'!P2:P514,\"=1\")","v":1},{"$f":"COUNTIFS('Utbildningstillfällen 2022-2023'!O2:O514,\"=Musik och opera\",'Utbildningstillfällen 2022-2023'!C2:C514,\"=1\",'Utbildningstillfällen 2022-2023'!Q2:Q514,\"=0\",'Utbildningstillfällen 2022-2023'!P2:P514,\"=1\")","v":8},{"$f":"COUNTIFS('Utbildningstillfällen 2022-2023'!O2:O514,\"=Samhälls- och beteendevetenskap\",'Utbildningstillfällen 2022-2023'!C2:C514,\"=1\",'Utbildningstillfällen 2022-2023'!Q2:Q514,\"=0\",'Utbildningstillfällen 2022-2023'!P2:P514,\"=1\")","v":16},{"$f":"COUNTIFS('Utbildningstillfällen 2022-2023'!O2:O514,\"=Språk, kommunikation och litteratur\",'Utbildningstillfällen 2022-2023'!C2:C514,\"=1\",'Utbildningstillfällen 2022-2023'!Q2:Q514,\"=0\",'Utbildningstillfällen 2022-2023'!P2:P514,\"=1\")","v":8},{"$f":"COUNTIFS('Utbildningstillfällen 2022-2023'!O2:O514,\"=Teknik\",'Utbildningstillfällen 2022-2023'!C2:C514,\"=1\",'Utbildningstillfällen 2022-2023'!Q2:Q514,\"=0\",'Utbildningstillfällen 2022-2023'!P2:P514,\"=1\")","v":85},{"$f":"COUNTIFS('Utbildningstillfällen 2022-2023'!O2:O514,\"=Undervisning och lärande\",'Utbildningstillfällen 2022-2023'!C2:C514,\"=1\",'Utbildningstillfällen 2022-2023'!Q2:Q514,\"=0\",'Utbildningstillfällen 2022-2023'!P2:P514,\"=1\")","v":6}]

{"sheet":"Tillgängliga utb. MDU total","index":2,"n_rows":29,"n_cols":3,"rows_kept":29,"cut":false,"hidden":false,"merged":[[1,1,1,7]]}
[]
[null,"Utbildningar relevanta och tillgängliga för yrkesverksamma"]
[null,"Utbildningar med start HT22 eller VT23 "]
[null,"(OBS1: dubbla starter ej dubbelt räknade)"]
[null,"(OBS2: Ej unika utbildningar - Ex: En distanskurs på deltid räknas i två summeringar)"]
[]
[null,"Utbildningar på avancerad nivå","Antal"]
[null,"Program",{"$f":"COUNTIFS('Utbildningstillfällen 2022-2023'!D2:D514,\"=1\",'Utbildningstillfällen 2022-2023'!Q2:Q514,\"=1\")","v":21}]
[null,"Kurser & Kurspaket",{"$f":"COUNTIFS('Utbildningstillfällen 2022-2023'!C2:C514,\"=1\",'Utbildningstillfällen 2022-2023'!Q2:Q514,\"=1\")","v":201}]
[]
[null,"Utbildningar med distansupplägg","Antal"]
[null,"Program",{"$f":"COUNTIFS('Utbildningstillfällen 2022-2023'!D2:D514,\"=1\",'Utbildningstillfällen 2022-2023'!R2:R514,\"=1\")","v":7}]
[null,"Kurser & Kurspaket",{"$f":"COUNTIFS('Utbildningstillfällen 2022-2023'!C2:C514,\"=1\",'Utbildningstillfällen 2022-2023'!R2:R514,\"=1\")","v":185}]
[]
[null,"Deltidsutbildningar 10-25%","Antal"]
[null,"Program",{"$f":"COUNTIFS('Utbildningstillfällen 2022-2023'!D2:D514,\"=1\",'Utbildningstillfällen 2022-2023'!L2:L514,\"=1\")","v":0}]
[null,"Kurser & Kurspaket",{"$f":"COUNTIFS('Utbildningstillfällen 2022-2023'!C2:C514,\"=1\",'Utbildningstillfällen 2022-2023'!L2:L514,\"=1\")","v":111}]
[]
[null,"Deltidsutbildningar 26-50%","Antal"]
[null,"Program",{"$f":"COUNTIFS('Utbildningstillfällen 2022-2023'!D2:D514,\"=1\",'Utbildningstillfällen 2022-2023'!K2:K514,\"=1\")","v":4}]
[null,"Kurser & Kurspaket",{"$f":"COUNTIFS('Utbildningstillfällen 2022-2023'!C2:C514,\"=1\",'Utbildningstillfällen 2022-2023'!K2:K514,\"=1\")","v":314}]
[]
[null,"Deltidsutbildningar 51-75%","Antal"]
[null,"Program",{"$f":"COUNTIFS('Utbildningstillfällen 2022-2023'!D2:D514,\"=1\",'Utbildningstillfällen 2022-2023'!J2:J514,\"=1\")","v":1}]
[null,"Kurser & Kurspaket",{"$f":"COUNTIFS('Utbildningstillfällen 2022-2023'!C2:C514,\"=1\",'Utbildningstillfällen 2022-2023'!J2:J514,\"=1\")","v":1}]
[]
[null,"Utbildningar kvällstid/helger/flexibelt upplägg","Antal"]
[null,"Program",{"$f":"COUNTIFS('Utbildningstillfällen 2022-2023'!D2:D514,\"=1\",'Utbildningstillfällen 2022-2023'!T2:T514,\"=1\")","v":0}]
[null,"Kurser & Kurspaket",{"$f":"COUNTIFS('Utbildningstillfällen 2022-2023'!C2:C514,\"=1\",'Utbildningstillfällen 2022-2023'!T2:T514,\"=1\")","v":127}]

{"sheet":"Avancerad nivå","index":3,"n_rows":6,"n_cols":10,"rows_kept":6,"cut":false,"hidden":false,"merged":[[1,0,1,9]]}
[]
["Utbildningar på avancerad nivå"]
[null,"Design"," Ekonomi och juridik","Hälsa och vård","Matematik, matematikdidaktik och naturvetenskap","Musik och opera","Samhälls- och beteendevetenskap","Språk, kommunikation och litteratur","Teknik","Undervisning och lärande"]
["Utbildningstyp","Antal","Antal","Antal","Antal","Antal","Antal","Antal","Antal","Antal"]
["Program",{"$f":"COUNTIFS('Utbildningstillfällen 2022-2023'!O2:O514,\"=Design\",'Utbildningstillfällen 2022-2023'!D2:D514,\"=1\",'Utbildningstillfällen 2022-2023'!Q2:Q514,\"=1\")","v":1},{"$f":"COUNTIFS('Utbildningstillfällen 2022-2023'!O2:O514,\"=Ekonomi och juridik\",'Utbildningstillfällen 2022-2023'!D2:D514,\"=1\",'Utbildningstillfällen 2022-2023'!Q2:Q514,\"=1\")","v":4},{"$f":"COUNTIFS('Utbildningstillfällen 2022-2023'!O2:O514,\"=Hälsa och vård\",'Utbildningstillfällen 2022-2023'!D2:D514,\"=1\",'Utbildningstillfällen 2022-2023'!Q2:Q514,\"=1\")","v":4},{"$f":"COUNTIFS('Utbildningstillfällen 2022-2023'!O2:O514,\"=Matematik, matematikdidaktik och naturvetenskap\",'Utbildningstillfällen 2022-2023'!D2:D514,\"=1\",'Utbildningstillfällen 2022-2023'!Q2:Q514,\"=1\")","v":2},{"$f":"COUNTIFS('Utbildningstillfällen 2022-2023'!O2:O514,\"=Musik och opera\",'Utbildningstillfällen 2022-2023'!D2:D514,\"=1\",'Utbildningstillfällen 2022-2023'!Q2:Q514,\"=1\")","v":1},{"$f":"COUNTIFS('Utbildningstillfällen 2022-2023'!O2:O514,\"=Samhälls- och beteendevetenskap\",'Utbildningstillfällen 2022-2023'!D2:D514,\"=1\",'Utbildningstillfällen 2022-2023'!Q2:Q514,\"=1\")","v":0},{"$f":"COUNTIFS('Utbildningstillfällen 2022-2023'!O2:O514,\"=Språk, kommunikation och litteratur\",'Utbildningstillfällen 2022-2023'!D2:D514,\"=1\",'Utbildningstillfällen 2022-2023'!Q2:Q514,\"=1\")","v":0},{"$f":"COUNTIFS('Utbildningstillfällen 2022-2023'!O2:O514,\"=Teknik\",'Utbildningstillfällen 2022-2023'!D2:D514,\"=1\",'Utbildningstillfällen 2022-2023'!Q2:Q514,\"=1\")","v":6},{"$f":"COUNTIFS('Utbildningstillfällen 2022-2023'!O2:O514,\"=Undervisning och lärande\",'Utbildningstillfällen 2022-2023'!D2:D514,\"=1\",'Utbildningstillfällen 2022-2023'!Q2:Q514,\"=1\")","v":3}]
["Kurser & Kurspaket",{"$f":"COUNTIFS('Utbildningstillfällen 2022-2023'!O2:O514,\"=Design\",'Utbildningstillfällen 2022-2023'!C2:C514,\"=1\",'Utbildningstillfällen 2022-2023'!Q2:Q514,\"=1\")","v":3},{"$f":"COUNTIFS('Utbildningstillfällen 2022-2023'!O2:O514,\"=Ekonomi och juridik\",'Utbildningstillfällen 2022-2023'!C2:C514,\"=1\",'Utbildningstillfällen 2022-2023'!Q2:Q514,\"=1\")","v":12},{"$f":"COUNTIFS('Utbildningstillfällen 2022-2023'!O2:O514,\"=Hälsa och vård\",'Utbildningstillfällen 2022-2023'!C2:C514,\"=1\",'Utbildningstillfällen 2022-2023'!Q2:Q514,\"=1\")","v":44},{"$f":"COUNTIFS('Utbildningstillfällen 2022-2023'!O2:O514,\"=Matematik, matematikdidaktik och naturvetenskap\",'Utbildningstillfällen 2022-2023'!C2:C514,\"=1\",'Utbildningstillfällen 2022-2023'!Q2:Q514,\"=1\")","v":20},{"$f":"COUNTIFS('Utbildningstillfällen 2022-2023'!O2:O514,\"=Musik och opera\",'Utbildningstillfällen 2022-2023'!C2:C514,\"=1\",'Utbildningstillfällen 2022-2023'!Q2:Q514,\"=1\")","v":0},{"$f":"COUNTIFS('Utbildningstillfällen 2022-2023'!O2:O514,\"=Samhälls- och beteendevetenskap\",'Utbildningstillfällen 2022-2023'!C2:C514,\"=1\",'Utbildningstillfällen 2022-2023'!Q2:Q514,\"=1\")","v":5},{"$f":"COUNTIFS('Utbildningstillfällen 2022-2023'!O2:O514,\"=Språk, kommunikation och litteratur\",'Utbildningstillfällen 2022-2023'!C2:C514,\"=1\",'Utbildningstillfällen 2022-2023'!Q2:Q514,\"=1\")","v":9},{"$f":"COUNTIFS('Utbildningstillfällen 2022-2023'!O2:O514,\"=Teknik\",'Utbildningstillfällen 2022-2023'!C2:C514,\"=1\",'Utbildningstillfällen 2022-2023'!Q2:Q514,\"=1\")","v":87},{"$f":"COUNTIFS('Utbildningstillfällen 2022-2023'!O2:O514,\"=Undervisning och lärande\",'Utbildningstillfällen 2022-2023'!C2:C514,\"=1\",'Utbildningstillfällen 2022-2023'!Q2:Q514,\"=1\")","v":21}]

{"sheet":"Distans","index":4,"n_rows":6,"n_cols":10,"rows_kept":6,"cut":false,"hidden":false,"merged":[[1,0,1,9]]}
[]
["Utbildningar med distansupplägg"]
[null,"Design","Ekonomi och juridik","Hälsa och vård","Matematik, matematikdidaktik och naturvetenskap","Musik och opera","Samhälls- och beteendevetenskap","Språk, kommunikation och litteratur","Teknik","Undervisning och lärande"]
["Utbildningstyp","Antal","Antal","Antal","Antal","Antal","Antal","Antal","Antal","Antal"]
["Program",{"$f":"COUNTIFS('Utbildningstillfällen 2022-2023'!O2:O514,\"=Design\",'Utbildningstillfällen 2022-2023'!D2:D514,\"=1\",'Utbildningstillfällen 2022-2023'!R2:R514,\"=1\")","v":0},{"$f":"COUNTIFS('Utbildningstillfällen 2022-2023'!O2:O514,\"=Ekonomi och juridik\",'Utbildningstillfällen 2022-2023'!D2:D514,\"=1\",'Utbildningstillfällen 2022-2023'!R2:R514,\"=1\")","v":0},{"$f":"COUNTIFS('Utbildningstillfällen 2022-2023'!O2:O514,\"=Hälsa och vård\",'Utbildningstillfällen 2022-2023'!D2:D514,\"=1\",'Utbildningstillfällen 2022-2023'!R2:R514,\"=1\")","v":0},{"$f":"COUNTIFS('Utbildningstillfällen 2022-2023'!O2:O514,\"=Matematik, matematikdidaktik och naturvetenskap\",'Utbildningstillfällen 2022-2023'!D2:D514,\"=1\",'Utbildningstillfällen 2022-2023'!R2:R514,\"=1\")","v":0},{"$f":"COUNTIFS('Utbildningstillfällen 2022-2023'!O2:O514,\"=Musik och opera\",'Utbildningstillfällen 2022-2023'!D2:D514,\"=1\",'Utbildningstillfällen 2022-2023'!R2:R514,\"=1\")","v":0},{"$f":"COUNTIFS('Utbildningstillfällen 2022-2023'!O2:O514,\"=Samhälls- och beteendevetenskap\",'Utbildningstillfällen 2022-2023'!D2:D514,\"=1\",'Utbildningstillfällen 2022-2023'!R2:R514,\"=1\")","v":0},{"$f":"COUNTIFS('Utbildningstillfällen 2022-2023'!O2:O514,\"=Språk, kommunikation och litteratur\",'Utbildningstillfällen 2022-2023'!D2:D514,\"=1\",'Utbildningstillfällen 2022-2023'!R2:R514,\"=1\")","v":0},{"$f":"COUNTIFS('Utbildningstillfällen 2022-2023'!O2:O514,\"=Teknik\",'Utbildningstillfällen 2022-2023'!D2:D514,\"=1\",'Utbildningstillfällen 2022-2023'!R2:R514,\"=1\")","v":0},{"$f":"COUNTIFS('Utbildningstillfällen 2022-2023'!O2:O514,\"=Undervisning och lärande\",'Utbildningstillfällen 2022-2023'!D2:D514,\"=1\",'Utbildningstillfällen 2022-2023'!R2:R514,\"=1\")","v":7}]
["Kurser & Kurspaket",{"$f":"COUNTIFS('Utbildningstillfällen 2022-2023'!O2:O514,\"=Design\",'Utbildningstillfällen 2022-2023'!C2:C514,\"=1\",'Utbildningstillfällen 2022-2023'!R2:R514,\"=1\")","v":3},{"$f":"COUNTIFS('Utbildningstillfällen 2022-2023'!O2:O514,\"=Ekonomi och juridik\",'Utbildningstillfällen 2022-2023'!C2:C514,\"=1\",'Utbildningstillfällen 2022-2023'!R2:R514,\"=1\")","v":33},{"$f":"COUNTIFS('Utbildningstillfällen 2022-2023'!O2:O514,\"=Hälsa och vård\",'Utbildningstillfällen 2022-2023'!C2:C514,\"=1\",'Utbildningstillfällen 2022-2023'!R2:R514,\"=1\")","v":28},{"$f":"COUNTIFS('Utbildningstillfällen 2022-2023'!O2:O514,\"=Matematik, matematikdidaktik och naturvetenskap\",'Utbildningstillfällen 2022-2023'!C2:C514,\"=1\",'Utbildningstillfällen 2022-2023'!R2:R514,\"=1\")","v":3},{"$f":"COUNTIFS('Utbildningstillfällen 2022-2023'!O2:O514,\"=Musik och opera\",'Utbildningstillfällen 2022-2023'!C2:C514,\"=1\",'Utbildningstillfällen 2022-2023'!R2:R514,\"=1\")","v":0},{"$f":"COUNTIFS('Utbildningstillfällen 2022-2023'!O2:O514,\"=Samhälls- och beteendevetenskap\",'Utbildningstillfällen 2022-2023'!C2:C514,\"=1\",'Utbildningstillfällen 2022-2023'!R2:R514,\"=1\")","v":13},{"$f":"COUNTIFS('Utbildningstillfällen 2022-2023'!O2:O514,\"=Språk, kommunikation och litteratur\",'Utbildningstillfällen 2022-2023'!C2:C514,\"=1\",'Utbildningstillfällen 2022-2023'!R2:R514,\"=1\")","v":21},{"$f":"COUNTIFS('Utbildningstillfällen 2022-2023'!O2:O514,\"=Teknik\",'Utbildningstillfällen 2022-2023'!C2:C514,\"=1\",'Utbildningstillfällen 2022-2023'!R2:R514,\"=1\")","v":60},{"$f":"COUNTIFS('Utbildningstillfällen 2022-2023'!O2:O514,\"=Undervisning och lärande\",'Utbildningstillfällen 2022-2023'!C2:C514,\"=1\",'Utbildningstillfällen 2022-2023'!R2:R514,\"=1\")","v":24}]

{"sheet":"Deltidsutb.","index":5,"n_rows":18,"n_cols":10,"rows_kept":18,"cut":false,"hidden":false,"merged":[[1,0,1,9],[7,0,7,9],[13,0,13,9]]}
[]
["Deltidsutbildningar 10-25 %"]
["Deltidsutbildningar 10-25 %","Design"," Ekonomi och juridik","Hälsa och vård","Matematik, matematikdidaktik och naturvetenskap","Musik och opera","Samhälls- och beteendevetenskap","Språk, kommunikation och litteratur","Teknik","Undervisning och lärande"]
["Utbildningstyp","Antal","Antal","Antal","Antal","Antal","Antal","Antal","Antal","Antal"]
["Program",{"$f":"COUNTIFS('Utbildningstillfällen 2022-2023'!O2:O514,\"=Design\",'Utbildningstillfällen 2022-2023'!D2:D514,\"=1\",'Utbildningstillfällen 2022-2023'!L2:L514,\"=1\")","v":0},{"$f":"COUNTIFS('Utbildningstillfällen 2022-2023'!O2:O514,\"=Ekonomi och juridik\",'Utbildningstillfällen 2022-2023'!D2:D514,\"=1\",'Utbildningstillfällen 2022-2023'!L2:L514,\"=1\")","v":0},{"$f":"COUNTIFS('Utbildningstillfällen 2022-2023'!O2:O514,\"=Hälsa och vård\",'Utbildningstillfällen 2022-2023'!D2:D514,\"=1\",'Utbildningstillfällen 2022-2023'!L2:L514,\"=1\")","v":0},{"$f":"COUNTIFS('Utbildningstillfällen 2022-2023'!O2:O514,\"=Matematik, matematikdidaktik och naturvetenskap\",'Utbildningstillfällen 2022-2023'!D2:D514,\"=1\",'Utbildningstillfällen 2022-2023'!L2:L514,\"=1\")","v":0},{"$f":"COUNTIFS('Utbildningstillfällen 2022-2023'!O2:O514,\"=Musik och opera\",'Utbildningstillfällen 2022-2023'!D2:D514,\"=1\",'Utbildningstillfällen 2022-2023'!L2:L514,\"=1\")","v":0},{"$f":"COUNTIFS('Utbildningstillfällen 2022-2023'!O2:O514,\"=Samhälls- och beteendevetenskap\",'Utbildningstillfällen 2022-2023'!D2:D514,\"=1\",'Utbildningstillfällen 2022-2023'!L2:L514,\"=1\")","v":0},{"$f":"COUNTIFS('Utbildningstillfällen 2022-2023'!O2:O514,\"=Språk, kommunikation och litteratur\",'Utbildningstillfällen 2022-2023'!D2:D514,\"=1\",'Utbildningstillfällen 2022-2023'!L2:L514,\"=1\")","v":0},{"$f":"COUNTIFS('Utbildningstillfällen 2022-2023'!O2:O514,\"=Teknik\",'Utbildningstillfällen 2022-2023'!D2:D514,\"=1\",'Utbildningstillfällen 2022-2023'!L2:L514,\"=1\")","v":0},{"$f":"COUNTIFS('Utbildningstillfällen 2022-2023'!O2:O514,\"=Undervisning och lärande\",'Utbildningstillfällen 2022-2023'!D2:D514,\"=1\",'Utbildningstillfällen 2022-2023'!L2:L514,\"=1\")","v":0}]
["Kurser & Kurspaket",{"$f":"COUNTIFS('Utbildningstillfällen 2022-2023'!O2:O514,\"=Design\",'Utbildningstillfällen 2022-2023'!C2:C514,\"=1\",'Utbildningstillfällen 2022-2023'!L2:L514,\"=1\")","v":1},{"$f":"COUNTIFS('Utbildningstillfällen 2022-2023'!O2:O514,\"=Ekonomi och juridik\",'Utbildningstillfällen 2022-2023'!C2:C514,\"=1\",'Utbildningstillfällen 2022-2023'!L2:L514,\"=1\")","v":31},{"$f":"COUNTIFS('Utbildningstillfällen 2022-2023'!O2:O514,\"=Hälsa och vård\",'Utbildningstillfällen 2022-2023'!C2:C514,\"=1\",'Utbildningstillfällen 2022-2023'!L2:L514,\"=1\")","v":15},{"$f":"COUNTIFS('Utbildningstillfällen 2022-2023'!O2:O514,\"=Matematik, matematikdidaktik och naturvetenskap\",'Utbildningstillfällen 2022-2023'!C2:C514,\"=1\",'Utbildningstillfällen 2022-2023'!L2:L514,\"=1\")","v":2},{"$f":"COUNTIFS('Utbildningstillfällen 2022-2023'!O2:O514,\"=Musik och opera\",'Utbildningstillfällen 2022-2023'!C2:C514,\"=1\",'Utbildningstillfällen 2022-2023'!L2:L514,\"=1\")","v":0},{"$f":"COUNTIFS('Utbildningstillfällen 2022-2023'!O2:O514,\"=Samhälls- och beteendevetenskap\",'Utbildningstillfällen 2022-2023'!C2:C514,\"=1\",'Utbildningstillfällen 2022-2023'!L2:L514,\"=1\")","v":8},{"$f":"COUNTIFS('Utbildningstillfällen 2022-2023'!O2:O514,\"=Språk, kommunikation och litteratur\",'Utbildningstillfällen 2022-2023'!C2:C514,\"=1\",'Utbildningstillfällen 2022-2023'!L2:L514,\"=1\")","v":12},{"$f":"COUNTIFS('Utbildningstillfällen 2022-2023'!O2:O514,\"=Teknik\",'Utbildningstillfällen 2022-2023'!C2:C514,\"=1\",'Utbildningstillfällen 2022-2023'!L2:L514,\"=1\")","v":32},{"$f":"COUNTIFS('Utbildningstillfällen 2022-2023'!O2:O514,\"=Undervisning och lärande\",'Utbildningstillfällen 2022-2023'!C2:C514,\"=1\",'Utbildningstillfällen 2022-2023'!L2:L514,\"=1\")","v":10}]
[]
["Deltidsutbildningar 26-50 %"]
["Deltidsutbildningar 26-50 %","Design"," Ekonomi och juridik","Hälsa och vård","Matematik, matematikdidaktik och naturvetenskap","Musik och opera","Samhälls- och beteendevetenskap","Språk, kommunikation och litteratur","Teknik","Undervisning och lärande"]
["Utbildningstyp","Antal","Antal","Antal","Antal","Antal","Antal","Antal","Antal","Antal"]
["Program",{"$f":"COUNTIFS('Utbildningstillfällen 2022-2023'!O2:O514,\"=Design\",'Utbildningstillfällen 2022-2023'!D2:D514,\"=1\",'Utbildningstillfällen 2022-2023'!K2:K514,\"=1\")","v":0},{"$f":"COUNTIFS('Utbildningstillfällen 2022-2023'!O2:O514,\"=Ekonomi och juridik\",'Utbildningstillfällen 2022-2023'!D2:D514,\"=1\",'Utbildningstillfällen 2022-2023'!K2:K514,\"=1\")","v":0},{"$f":"COUNTIFS('Utbildningstillfällen 2022-2023'!O2:O514,\"=Hälsa och vård\",'Utbildningstillfällen 2022-2023'!D2:D514,\"=1\",'Utbildningstillfällen 2022-2023'!K2:K514,\"=1\")","v":0},{"$f":"COUNTIFS('Utbildningstillfällen 2022-2023'!O2:O514,\"=Matematik, matematikdidaktik och naturvetenskap\",'Utbildningstillfällen 2022-2023'!D2:D514,\"=1\",'Utbildningstillfällen 2022-2023'!K2:K514,\"=1\")","v":0},{"$f":"COUNTIFS('Utbildningstillfällen 2022-2023'!O2:O514,\"=Musik och opera\",'Utbildningstillfällen 2022-2023'!D2:D514,\"=1\",'Utbildningstillfällen 2022-2023'!K2:K514,\"=1\")","v":0},{"$f":"COUNTIFS('Utbildningstillfällen 2022-2023'!O2:O514,\"=Samhälls- och beteendevetenskap\",'Utbildningstillfällen 2022-2023'!D2:D514,\"=1\",'Utbildningstillfällen 2022-2023'!K2:K514,\"=1\")","v":0},{"$f":"COUNTIFS('Utbildningstillfällen 2022-2023'!O2:O514,\"=Språk, kommunikation och litteratur\",'Utbildningstillfällen 2022-2023'!D2:D514,\"=1\",'Utbildningstillfällen 2022-2023'!K2:K514,\"=1\")","v":0},{"$f":"COUNTIFS('Utbildningstillfällen 2022-2023'!O2:O514,\"=Teknik\",'Utbildningstillfällen 2022-2023'!D2:D514,\"=1\",'Utbildningstillfällen 2022-2023'!K2:K514,\"=1\")","v":0},{"$f":"COUNTIFS('Utbildningstillfällen 2022-2023'!O2:O514,\"=Undervisning och lärande\",'Utbildningstillfällen 2022-2023'!D2:D514,\"=1\",'Utbildningstillfällen 2022-2023'!K2:K514,\"=1\")","v":4}]
["Kurser & Kurspaket",{"$f":"COUNTIFS('Utbildningstillfällen 2022-2023'!O2:O514,\"=Design\",'Utbildningstillfällen 2022-2023'!C2:C514,\"=1\",'Utbildningstillfällen 2022-2023'!K2:K514,\"=1\")","v":8},{"$f":"COUNTIFS('Utbildningstillfällen 2022-2023'!O2:O514,\"=Ekonomi och juridik\",'Utbildningstillfällen 2022-2023'!C2:C514,\"=1\",'Utbildningstillfällen 2022-2023'!K2:K514,\"=1\")","v":26},{"$f":"COUNTIFS('Utbildningstillfällen 2022-2023'!O2:O514,\"=Hälsa och vård\",'Utbildningstillfällen 2022-2023'!C2:C514,\"=1\",'Utbildningstillfällen 2022-2023'!K2:K514,\"=1\")","v":24},{"$f":"COUNTIFS('Utbildningstillfällen 2022-2023'!O2:O514,\"=Matematik, matematikdidaktik och naturvetenskap\",'Utbildningstillfällen 2022-2023'!C2:C514,\"=1\",'Utbildningstillfällen 2022-2023'!K2:K514,\"=1\")","v":45},{"$f":"COUNTIFS('Utbildningstillfällen 2022-2023'!O2:O514,\"=Musik och opera\",'Utbildningstillfällen 2022-2023'!C2:C514,\"=1\",'Utbildningstillfällen 2022-2023'!K2:K514,\"=1\")","v":8},{"$f":"COUNTIFS('Utbildningstillfällen 2022-2023'!O2:O514,\"=Samhälls- och beteendevetenskap\",'Utbildningstillfällen 2022-2023'!C2:C514,\"=1\",'Utbildningstillfällen 2022-2023'!K2:K514,\"=1\")","v":10},{"$f":"COUNTIFS('Utbildningstillfällen 2022-2023'!O2:O514,\"=Språk, kommunikation och litteratur\",'Utbildningstillfällen 2022-2023'!C2:C514,\"=1\",'Utbildningstillfällen 2022-2023'!K2:K514,\"=1\")","v":32},{"$f":"COUNTIFS('Utbildningstillfällen 2022-2023'!O2:O514,\"=Teknik\",'Utbildningstillfällen 2022-2023'!C2:C514,\"=1\",'Utbildningstillfällen 2022-2023'!K2:K514,\"=1\")","v":145},{"$f":"COUNTIFS('Utbildningstillfällen 2022-2023'!O2:O514,\"=Undervisning och lärande\",'Utbildningstillfällen 2022-2023'!C2:C514,\"=1\",'Utbildningstillfällen 2022-2023'!K2:K514,\"=1\")","v":16}]
[]
["Deltidsutbildningar 50-75 %"]
["Deltidsutbildningar 51-75 %","Design"," Ekonomi och juridik","Hälsa och vård","Matematik, matematikdidaktik och naturvetenskap","Musik och opera","Samhälls- och beteendevetenskap","Språk, kommunikation och litteratur","Teknik","Undervisning och lärande"]
["Utbildningstyp","Antal","Antal","Antal","Antal","Antal","Antal","Antal","Antal","Antal"]
["Program",{"$f":"COUNTIFS('Utbildningstillfällen 2022-2023'!O2:O514,\"=Design\",'Utbildningstillfällen 2022-2023'!D2:D514,\"=1\",'Utbildningstillfällen 2022-2023'!J2:J514,\"=1\")","v":0},{"$f":"COUNTIFS('Utbildningstillfällen 2022-2023'!O2:O514,\"=Ekonomi och juridik\",'Utbildningstillfällen 2022-2023'!D2:D514,\"=1\",'Utbildningstillfällen 2022-2023'!J2:J514,\"=1\")","v":0},{"$f":"COUNTIFS('Utbildningstillfällen 2022-2023'!O2:O514,\"=Hälsa och vård\",'Utbildningstillfällen 2022-2023'!D2:D514,\"=1\",'Utbildningstillfällen 2022-2023'!J2:J514,\"=1\")","v":0},{"$f":"COUNTIFS('Utbildningstillfällen 2022-2023'!O2:O514,\"=Matematik, matematikdidaktik och naturvetenskap\",'Utbildningstillfällen 2022-2023'!D2:D514,\"=1\",'Utbildningstillfällen 2022-2023'!J2:J514,\"=1\")","v":0},{"$f":"COUNTIFS('Utbildningstillfällen 2022-2023'!O2:O514,\"=Musik och opera\",'Utbildningstillfällen 2022-2023'!D2:D514,\"=1\",'Utbildningstillfällen 2022-2023'!J2:J514,\"=1\")","v":0},{"$f":"COUNTIFS('Utbildningstillfällen 2022-2023'!O2:O514,\"=Samhälls- och beteendevetenskap\",'Utbildningstillfällen 2022-2023'!D2:D514,\"=1\",'Utbildningstillfällen 2022-2023'!J2:J514,\"=1\")","v":0},{"$f":"COUNTIFS('Utbildningstillfällen 2022-2023'!O2:O514,\"=Språk, kommunikation och litteratur\",'Utbildningstillfällen 2022-2023'!D2:D514,\"=1\",'Utbildningstillfällen 2022-2023'!J2:J514,\"=1\")","v":0},{"$f":"COUNTIFS('Utbildningstillfällen 2022-2023'!O2:O514,\"=Teknik\",'Utbildningstillfällen 2022-2023'!D2:D514,\"=1\",'Utbildningstillfällen 2022-2023'!J2:J514,\"=1\")","v":0},{"$f":"COUNTIFS('Utbildningstillfällen 2022-2023'!O2:O514,\"=Undervisning och lärande\",'Utbildningstillfällen 2022-2023'!D2:D514,\"=1\",'Utbildningstillfällen 2022-2023'!J2:J514,\"=1\")","v":1}]
["Kurser & Kurspaket",{"$f":"COUNTIFS('Utbildningstillfällen 2022-2023'!O2:O514,\"=Design\",'Utbildningstillfällen 2022-2023'!C2:C514,\"=1\",'Utbildningstillfällen 2022-2023'!J2:J514,\"=1\")","v":0},{"$f":"COUNTIFS('Utbildningstillfällen 2022-2023'!O2:O514,\"=Ekonomi och juridik\",'Utbildningstillfällen 2022-2023'!C2:C514,\"=1\",'Utbildningstillfällen 2022-2023'!J2:J514,\"=1\")","v":0},{"$f":"COUNTIFS('Utbildningstillfällen 2022-2023'!O2:O514,\"=Hälsa och vård\",'Utbildningstillfällen 2022-2023'!C2:C514,\"=1\",'Utbildningstillfällen 2022-2023'!J2:J514,\"=1\")","v":0},{"$f":"COUNTIFS('Utbildningstillfällen 2022-2023'!O2:O514,\"=Matematik, matematikdidaktik och naturvetenskap\",'Utbildningstillfällen 2022-2023'!C2:C514,\"=1\",'Utbildningstillfällen 2022-2023'!J2:J514,\"=1\")","v":0},{"$f":"COUNTIFS('Utbildningstillfällen 2022-2023'!O2:O514,\"=Musik och opera\",'Utbildningstillfällen 2022-2023'!C2:C514,\"=1\",'Utbildningstillfällen 2022-2023'!J2:J514,\"=1\")","v":0},{"$f":"COUNTIFS('Utbildningstillfällen 2022-2023'!O2:O514,\"=Samhälls- och beteendevetenskap\",'Utbildningstillfällen 2022-2023'!C2:C514,\"=1\",'Utbildningstillfällen 2022-2023'!J2:J514,\"=1\")","v":0},{"$f":"COUNTIFS('Utbildningstillfällen 2022-2023'!O2:O514,\"=Språk, kommunikation och litteratur\",'Utbildningstillfällen 2022-2023'!C2:C514,\"=1\",'Utbildningstillfällen 2022-2023'!J2:J514,\"=1\")","v":0},{"$f":"COUNTIFS('Utbildningstillfällen 2022-2023'!O2:O514,\"=Teknik\",'Utbildningstillfällen 2022-2023'!C2:C514,\"=1\",'Utbildningstillfällen 2022-2023'!J2:J514,\"=1\")","v":1},{"$f":"COUNTIFS('Utbildningstillfällen 2022-2023'!O2:O514,\"=Undervisning och lärande\",'Utbildningstillfällen 2022-2023'!C2:C514,\"=1\",'Utbildningstillfällen 2022-2023'!J2:J514,\"=1\")","v":0}]

{"sheet":"Kväll, flexibelt","index":6,"n_rows":6,"n_cols":10,"rows_kept":6,"cut":false,"hidden":false,"merged":[[1,0,1,9]]}
[]
["Utbildningar kvällstid/helger/flexibelt upplägg"]
[null,"Design"," Ekonomi och juridik","Hälsa och vård","Matematik, matematikdidaktik och naturvetenskap","Musik och opera","Samhälls- och beteendevetenskap","Språk, kommunikation och litteratur","Teknik","Undervisning och lärande"]
["Utbildningstyp","Antal","Antal","Antal","Antal","Antal","Antal","Antal","Antal","Antal"]
["Program",{"$f":"COUNTIFS('Utbildningstillfällen 2022-2023'!O2:O514,\"=Design\",'Utbildningstillfällen 2022-2023'!D2:D514,\"=1\",'Utbildningstillfällen 2022-2023'!T2:T514,\"=1\")","v":0},{"$f":"COUNTIFS('Utbildningstillfällen 2022-2023'!O2:O514,\"=Ekonomi och juridik\",'Utbildningstillfällen 2022-2023'!D2:D514,\"=1\",'Utbildningstillfällen 2022-2023'!T2:T514,\"=1\")","v":0},{"$f":"COUNTIFS('Utbildningstillfällen 2022-2023'!O2:O514,\"=Hälsa och vård\",'Utbildningstillfällen 2022-2023'!D2:D514,\"=1\",'Utbildningstillfällen 2022-2023'!T2:T514,\"=1\")","v":0},{"$f":"COUNTIFS('Utbildningstillfällen 2022-2023'!O2:O514,\"=Matematik, matematikdidaktik och naturvetenskap\",'Utbildningstillfällen 2022-2023'!D2:D514,\"=1\",'Utbildningstillfällen 2022-2023'!T2:T514,\"=1\")","v":0},{"$f":"COUNTIFS('Utbildningstillfällen 2022-2023'!O2:O514,\"=Musik och opera\",'Utbildningstillfällen 2022-2023'!D2:D514,\"=1\",'Utbildningstillfällen 2022-2023'!T2:T514,\"=1\")","v":0},{"$f":"COUNTIFS('Utbildningstillfällen 2022-2023'!O2:O514,\"=Samhälls- och beteendevetenskap\",'Utbildningstillfällen 2022-2023'!D2:D514,\"=1\",'Utbildningstillfällen 2022-2023'!T2:T514,\"=1\")","v":0},{"$f":"COUNTIFS('Utbildningstillfällen 2022-2023'!O2:O514,\"=Språk, kommunikation och litteratur\",'Utbildningstillfällen 2022-2023'!D2:D514,\"=1\",'Utbildningstillfällen 2022-2023'!T2:T514,\"=1\")","v":0},{"$f":"COUNTIFS('Utbildningstillfällen 2022-2023'!O2:O514,\"=Teknik\",'Utbildningstillfällen 2022-2023'!D2:D514,\"=1\",'Utbildningstillfällen 2022-2023'!T2:T514,\"=1\")","v":0},{"$f":"COUNTIFS('Utbildningstillfällen 2022-2023'!O2:O514,\"=Undervisning och lärande\",'Utbildningstillfällen 2022-2023'!D2:D514,\"=1\",'Utbildningstillfällen 2022-2023'!T2:T514,\"=1\")","v":0}]
["Kurser & Kurspaket",{"$f":"COUNTIFS('Utbildningstillfällen 2022-2023'!O2:O514,\"=Design\",'Utbildningstillfällen 2022-2023'!C2:C514,\"=1\",'Utbildningstillfällen 2022-2023'!T2:T514,\"=1\")","v":4},{"$f":"COUNTIFS('Utbildningstillfällen 2022-2023'!O2:O514,\"=Ekonomi och juridik\",'Utbildningstillfällen 2022-2023'!C2:C514,\"=1\",'Utbildningstillfällen 2022-2023'!T2:T514,\"=1\")","v":33},{"$f":"COUNTIFS('Utbildningstillfällen 2022-2023'!O2:O514,\"=Hälsa och vård\",'Utbildningstillfällen 2022-2023'!C2:C514,\"=1\",'Utbildningstillfällen 2022-2023'!T2:T514,\"=1\")","v":0},{"$f":"COUNTIFS('Utbildningstillfällen 2022-2023'!O2:O514,\"=Matematik, matematikdidaktik och naturvetenskap\",'Utbildningstillfällen 2022-2023'!C2:C514,\"=1\",'Utbildningstillfällen 2022-2023'!T2:T514,\"=1\")","v":3},{"$f":"COUNTIFS('Utbildningstillfällen 2022-2023'!O2:O514,\"=Musik och opera\",'Utbildningstillfällen 2022-2023'!C2:C514,\"=1\",'Utbildningstillfällen 2022-2023'!T2:T514,\"=1\")","v":0},{"$f":"COUNTIFS('Utbildningstillfällen 2022-2023'!O2:O514,\"=Samhälls- och beteendevetenskap\",'Utbildningstillfällen 2022-2023'!C2:C514,\"=1\",'Utbildningstillfällen 2022-2023'!T2:T514,\"=1\")","v":6},{"$f":"COUNTIFS('Utbildningstillfällen 2022-2023'!O2:O514,\"=Språk, kommunikation och litteratur\",'Utbildningstillfällen 2022-2023'!C2:C514,\"=1\",'Utbildningstillfällen 2022-2023'!T2:T514,\"=1\")","v":0},{"$f":"COUNTIFS('Utbildningstillfällen 2022-2023'!O2:O514,\"=Teknik\",'Utbildningstillfällen 2022-2023'!C2:C514,\"=1\",'Utbildningstillfällen 2022-2023'!T2:T514,\"=1\")","v":67},{"$f":"COUNTIFS('Utbildningstillfällen 2022-2023'!O2:O514,\"=Undervisning och lärande\",'Utbildningstillfällen 2022-2023'!C2:C514,\"=1\",'Utbildningstillfällen 2022-2023'!T2:T514,\"=1\")","v":14}]